Workbook

Sheet Compound Interest
A1: interest rate | B1: x0 | C1: Exact ans.
A2: (1/yr) | B2: ($) | C2: ($)
A3: 1 | B3: 100 | C3: =B3*EXP(int_rate*1) -> 271.8281828
A5: Annual Compounding | C5: Quarterly Compounding | E5: Monthly Compounding | G5: Bi-Monthly Compounding | I5: Continuous Compounding
A6: time | B6: x ($) | C6: time | D6: x ($) | E6: time | F6: x ($) | G6: time | H6: x ($) | I6: time | J6: x ($)
A7: 0 | B7: =$B$3 -> 100 | C7: 0 | D7: =$B$3 -> 100 | E7: 0 | F7: =$B$3 -> 100 | G7: 0 | H7: =$B$3 -> 100 | I7: =G7 -> 0 | J7: =B3 -> 100
A8: 1 | B8: =B7+B7*int_rate -> 200 | C8: 0.25 | D8: =D7+int_rate*D7*0.25 -> 125 | E8: =1/12 -> 0.08333333333 | F8: =F7+int_rate*F7*(1/12) -> 108.3333333 | G8: =G7+1/24 -> 0.04166666667 | H8: =H7+int_rate*H7/24 -> 104.1666667 | I8: =I7+1/48 -> 0.02083333333 | J8: =$B$3*EXP(int_rate*I8) -> 102.1051862
C9: 0.5 | D9: =D8+int_rate*D8*0.25 -> 156.25 | E9: =E8+1/12 -> 0.1666666667 | F9: =F8+int_rate*F8*(1/12) -> 117.3611111 | G9: =G8+1/24 -> 0.08333333333 | H9: =H8+int_rate*H8/24 -> 108.5069444 | I9: =I8+1/48 -> 0.04166666667 | J9: 104.2546905
C10: 0.75 | D10: =D9+int_rate*D9*0.25 -> 195.3125 | E10: =E9+1/12 -> 0.25 | F10: 127.1412037 | G10: 0.125 | H10: 113.0280671 | I10: 0.0625 | J10: 106.4494459
C11: 1 | D11: =D10+int_rate*D10*0.25 -> 244.140625 | E11: 0.3333333333 | F11: 137.736304 | G11: 0.1666666667 | H11: 117.7375699 | I11: 0.08333333333 | J11: 108.690405
E12: 0.4166666667 | F12: 149.2143293 | G12: 0.2083333333 | H12: 122.643302 | I12: 0.1041666667 | J12: 110.9785404
E13: 0.5 | F13: 161.6488568 | G13: 0.25 | H13: 127.7534396 | I13: 0.125 | J13: 113.3148453
E14: 0.5833333333 | F14: 175.1195949 | G14: 0.2916666667 | H14: 133.0764996 | I14: 0.1458333333 | J14: 115.7003338
E15: 0.6666666667 | F15: 189.7128944 | G15: 0.3333333333 | H15: 138.6213537 | I15: 0.1666666667 | J15: 118.1360413
E16: 0.75 | F16: 205.5223023 | G16: 0.375 | H16: 144.3972435 | I16: 0.1875 | J16: 120.6230249
E17: 0.8333333333 | F17: 222.6491608 | G17: 0.4166666667 | H17: 150.4137953 | I17: 0.2083333333 | J17: 123.1623642
E18: 0.9166666667 | F18: 241.2032576 | G18: 0.4583333333 | H18: 156.6810367 | I18: 0.2291666667 | J18: 125.7551613
E19: =E18+1/12 -> 1 | F19: 261.303529 | G19: 0.5 | H19: 163.2094133 | I19: 0.25 | J19: 128.4025417
G20: 0.5416666667 | H20: 170.0098055 | I20: 0.2708333333 | J20: 131.1056543
G21: 0.5833333333 | H21: 177.0935474 | I21: 0.2916666667 | J21: 133.8656724
G22: 0.625 | H22: 184.4724452 | I22: 0.3125 | J22: 136.6837941
G23: 0.6666666667 | H23: 192.1587971 | I23: 0.3333333333 | J23: 139.5612425
G24: 0.7083333333 | H24: 200.1654136 | I24: 0.3541666667 | J24: 142.4992665
G25: 0.75 | H25: 208.5056392 | I25: 0.375 | J25: 145.4991415
G26: 0.7916666667 | H26: 217.1933742 | I26: 0.3958333333 | J26: 148.5621693
G27: 0.8333333333 | H27: 226.2430981 | I27: 0.4166666667 | J27: 151.6896796
G28: 0.875 | H28: 235.6698938 | I28: 0.4375 | J28: 154.8830299
G29: 0.9166666667 | H29: 245.4894727 | I29: 0.4583333333 | J29: 158.1436061
G30: 0.9583333333 | H30: 255.7182008 | I30: 0.4791666667 | J30: 161.4728235
G31: 1 | H31: =H30+int_rate*H30/24 -> 266.3731258 | I31: 0.5 | J31: 164.8721271
I32: 0.5208333333 | J32: 168.3429924
I33: 0.5416666667 | J33: 171.8869258
I34: 0.5625 | J34: 175.5054657
I35: 0.5833333333 | J35: 179.2001826
I36: 0.6041666667 | J36: 182.9726801
I37: 0.625 | J37: 186.8245957
I38: 0.6458333333 | J38: 190.7576014
I39: 0.6666666667 | J39: 194.7734041
I40: 0.6875 | J40: 198.873747
I41: 0.7083333333 | J41: 203.0604097
I42: 0.7291666667 | J42: 207.3352094
I43: 0.75 | J43: 211.7000017
I44: 0.7708333333 | J44: 216.1566809
I45: 0.7916666667 | J45: 220.7071816
I46: 0.8125 | J46: 225.3534787
I47: 0.8333333333 | J47: 230.0975891
I48: 0.8541666667 | J48: 234.9415718
I49: 0.875 | J49: 239.8875294
I50: 0.8958333333 | J50: 244.9376086
I51: 0.9166666667 | J51: 250.0940014
I52: 0.9375 | J52: 255.3589458
I53: 0.9583333333 | J53: 260.7347271
I54: 0.9791666667 | J54: 266.2236787
I55: 1 | J55: 271.8281828

Sheet PredatorPrey
A1: g_prey | B1: a_prey | C1: d_pred | D1: b_pred | E1: x0 | F1: y0 | G1: deltat
A2: # rabbits born/day/rabbit | B2: fraction of rabbits killed/day/lynx | C2: # lynx deaths/day/lynx | D2: fraction of lynx born/day/rabbit
A3: 0.01 | B3: 0.001 | C3: 0.004 | D3: 0.0001 | E3: 80 | F3: 5 | G3: 10
A5: Time(days) | B5: x (prey) | C5: y (predadtors)
A6: 0 | B6: =x0 -> 80 | C6: =y0 -> 5
A7: =A6+delta_t -> 10 | B7: =MAX(B6+delta_t*(g_prey*B6 - a_prey*B6*C6),0) -> 84 | C7: =MAX(C6+delta_t*(-d_pred*C6 + b_pred*B6*C6),0) -> 5.2
A8: 20 | B8: 88.032 | C8: =MAX(C7+delta_t*(-d_pred*C7 + b_pred*B7*C7),0) -> 5.4288
A9: 30 | B9: 92.05611878 | C9: =MAX(C8+delta_t*(-d_pred*C8 + b_pred*B8*C8),0) -> 5.689556122
A10: 40 | B10: 96.02414612 | C10: =MAX(C9+delta_t*(-d_pred*C9 + b_pred*B9*C9),0) -> 5.985732331
A11: 50 | B11: 99.87881237 | C11: =MAX(C10+delta_t*(-d_pred*C10 + b_pred*B10*C10),0) -> 6.321077874
A12: 60 | B12: 103.5532761 | C12: 6.69957651
A13: 70 | B13: 106.9709728 | C13: 7.125356545
A14: 80 | B14: 110.0460068 | C14: 7.602548604
A15: 90 | B15: 112.6843063 | C15: 8.135076776
A16: 100 | B16: 114.7857821 | C16: 8.726369188
A17: 110 | B17: 116.2477292 | C17: 9.378977533
A18: 120 | B18: 116.9696537 | C18: 10.09410327
A19: 130 | B19: 116.8595815 | C19: 10.87104291
A20: 140 | B20: 115.8416844 | C20: 11.70658671
A21: 150 | B21: 113.8647456 | C21: 12.59443397
A22: 160 | B22: 110.9105999 | C22: 13.52471863
A23: 170 | B23: 107.0013134 | C23: =MAX(C22+delta_t*(-d_pred*C22 + b_pred*B22*C22),0) -> 14.48376454
A24: 180 | B24: 102.2036264 | C24: 15.45419579
A25: 190 | B25: 96.62924053 | C25: 16.41550281
A26: 200 | B26: 90.42998889 | C26: 17.34510027
A27: 210 | B27: 83.78781553 | C27: 18.21981348
A28: 220 | B28: 76.90061338 | C28: 19.01761931
A29: 230 | B29: 69.96600881 | C29: 19.71938113
A30: 240 | B30: 63.16574575 | C30: 20.31029228
A31: 250 | B31: 56.65317275 | C31: 20.78079535
A32: 260 | B32: 50.54551013 | C32: 21.12686152
A33: 270 | B33: 44.92138122 | C33: 21.34965505
A34: 280 | B34: 39.8229594 | C34: 21.45472484
A35: 290 | B35: 35.26134898 | C35: 21.45092649
A36: 300 | B36: 31.22359783 | C36: 21.34927803
A37: 310 | B37: 27.6799449 | C37: 21.16190818
A38: 320 | B38: 24.59033486 | C38: 20.90119231
A39: 330 | B39: =MAX(B38+delta_t*(g_prey*B38 - a_prey*B38*C38),0) -> 21.90969517 | C39: 20.57911193
A40: 340 | B40: 19.591844 | C40: 20.20682953
A41: 350 | B41: 17.59213788 | C41: 19.7944454
A42: 360 | B42: 15.86908554 | C42: 19.35089419
A43: 370 | B43: 14.38518414 | C43: 18.88393942
A44: 380 | B44: 13.1072131 | C44: 18.40023079
A45: 390 | B45: 12.00617695 | C45: 17.9053973
A46: 400 | B46: 11.05704096 | C46: 17.40415678
A47: 410 | B47: 10.23836031 | C47: 16.90042898
A48: 420 | B48: 9.531869528 | C48: 16.39744451
A49: 430 | B49: 8.922073464 | C49: 15.89784503
A50: 440 | B50: 8.395863398 | C50: 15.40377297
A51: 450 | B51: 7.942170001 | C51: 14.91695002
A52: 460 | B52: 7.551657472 | C52: 14.43874497
A53: 470 | B53: 7.216458655 | C53: 13.97023163
A54: 480 | B54: 6.929948531 | C54: 13.51223797
A55: 490 | B55: 6.686552248 | C55: 13.06538756
A56: 500 | B56: 6.481583507 | C56: 12.63013445
A57: 510 | B57: 6.311109146 | C57: 12.20679235
A58: 520 | B58: 6.171836072 | C58: 11.79555905
A59: 530 | B59: 6.061017111 | C59: 11.39653695
A60: 540 | B60: 5.976372768 | C60: 11.00975007
A61: 550 | B61: 5.916026339 | C61: 10.63515844
A62: 560 | B62: 5.878450199 | C62: 10.27266998
A63: 570 | B63: 5.86242143 | C63: 9.922150561
A64: 580 | B64: 5.866985292 | C64: 9.583432367
A65: 590 | B65: 5.891425253 | C65: 9.256320929
A66: 600 | B66: 5.93523855 | C66: 8.940601015
A67: 610 | B67: 5.998116407 | C67: 8.636041574
A68: 620 | B68: 6.079928221 | C68: 8.342399894
A69: 630 | B69: 6.180709118 | C69: 8.059425091
A70: 640 | B70: 6.300650408 | C70: 7.786861049
A71: =A70+delta_t -> 650 | B71: =MAX(B70+delta_t*(g_prey*B70 - a_prey*B70*C70),0) -> 6.440092556 | C71: 7.524448896
A72: 660 | B72: 6.599520339 | C72: 7.271929088
A73: 670 | B73: 6.779559934 | C73: 7.029043168
A74: 680 | B74: 6.980977733 | C74: 6.795535261
A75: 690 | B75: 7.204680702 | C75: 6.571153331
A76: 700 | B76: 7.451718157 | C76: 6.355650259
A77: 710 | B77: 7.723284828 | C77: 6.148784763
A78: 720 | B78: 8.02072515 | C78: 5.950322189
A79: 730 | B79: 8.345538677 | C79: 5.7600352
A80: 740 | B80: 8.699386579 | C80: 5.577704389
A81: 750 | B81: 9.08409917 | C81: 5.40311882
A82: 760 | B82: 9.501684415 | C82: 5.236076534
A83: 770 | B83: 9.954337389 | C83: 5.07638502
A84: 780 | B84: 10.44445064 | C84: 4.923861668
A85: 790 | B85: 10.9746254 | C85: 4.778334231
A86: 800 | B86: 11.54768366 | C86: 4.63964129
A87: 810 | B87: 12.16668092 | C87: =MAX(C86+delta_t*(-d_pred*C86 + b_pred*B86*C86),0) -> 4.507632749
A88: 820 | B88: 12.83491972 | C88: 4.382170368
A89: 830 | B89: 13.55596364 | C89: 4.263128358
A90: 840 | B90: 14.33365188 | C90: 4.150394037
A91: 850 | B91: 15.17211403 | C91: 4.043868579
A92: 860 | B92: 16.07578508 | C92: 3.943467871
A93: 870 | B93: 17.04942017 | C93: 3.849123498
A94: 880 | B94: 18.09810895 | C94: 3.760783882
A95: 890 | B95: 19.22728908 | C95: 3.678415603
A96: 900 | B96: 20.44275839 | C96: 3.602004939
A97: 910 | B97: 21.75068506 | C97: 3.531559658
A98: 920 | B98: 23.15761515 | C98: 3.467111114
A99: 930 | B99: 24.67047641 | C99: 3.408716694
A100: 940 | B100: 26.29657741 | C100: 3.356462691
A101: 950 | B101: 28.04360034 | C101: 3.310467664
A102: 960 | B102: 29.91958605 | C102: 3.27088639
A103: 970 | B103: =MAX(B102+delta_t*(g_prey*B102 - a_prey*B102*C102),0) -> 31.93290899 | C103: 3.237914501
A104: 980 | B104: 34.0922396 | C104: 3.21179395
A105: 990 | B105: 36.40649107 | C105: 3.192819441
A106: 1000 | B106: 38.88474665 | C106: 3.181346016
A107: 1010 | B107: 41.53616298 | C107: 3.177798009
A108: 1020 | B108: 44.36984391 | C108: 3.182679625
A109: 1030 | B109: 47.39467832 | C109: 3.196587438
A110: 1040 | B110: 50.61913382 | C110: 3.220225174
A111: 1050 | B111: 54.05099711 | C111: 3.254421176
A112: 1060 | B112: 57.69704973 | C112: 3.300149038
A113: 1070 | B113: 61.56266607 | C113: 3.35855194
A114: 1080 | B114: 65.65131856 | C114: 3.430971274
A115: 1090 | B115: 69.96397254 | C115: 3.518980211
A116: 1100 | B116: 74.49835144 | C116: 3.624422838
A117: 1110 | B117: 79.24805132 | C117: 3.74945945
A118: 1120 | B118: 84.20148291 | C118: 3.896618427
A119: 1130 | B119: 89.3406207 | C119: 4.06885474
A120: 1140 | B120: 94.63954269 | C120: 4.269614559
A121: 1150 | B121: 100.0627533 | C121: 4.502904345
A122: 1160 | B122: 105.5632985 | C122: 4.773361178
A123: 1170 | B123: 111.0807109 | C123: 5.086318482
A124: 1180 | B124: 116.5388632 | C124: 5.447857615
A125: 1190 | B125: 121.8438782 | C125: 5.864830444
A126: 1200 | B126: 126.8823292 | C126: 6.344830913
A127: 1210 | B127: 131.5200928 | C127: 6.896084601
A128: 1220 | B128: 135.6023653 | C128: 7.527214904
A129: 1230 | B129: 138.9555203 | C129: 8.246834453
A130: 1240 | B130: 141.3916406 | C130: 9.062904247
A131: 1250 | B131: 142.7166157 | C131: 9.981806978
A132: 1260 | B132: 142.7425802 | C132: 11.00710441
A133: 1270 | B133: 141.3050134 | C133: 12.13800272
A134: 1280 | B134: 138.2839083 | C134: 13.36764324
A135: =A134+delta_t -> 1290 | B135: =MAX(B134+delta_t*(g_prey*B134 - a_prey*B134*C134),0) -> 133.6269996 | C135: 14.68146747
A136: 1300 | B136: 127.3712951 | C136: 16.05604922
A137: 1310 | B137: 119.6576268 | C137: 17.45888703
A138: 1320 | B138: 110.7324996 | C138: 18.84962054
A139: 1330 | B139: 100.9330936 | C139: 20.18290131
A140: 1340 | B140: 90.65517626 | C140: 21.41270793
A141: 1350 | B141: 80.30896577 | C141: 22.49737242
A142: 1360 | B142: 70.27245523 | C142: 23.40421824
A143: 1370 | B143: 60.85298197 | C143: 24.11272139
A144: 1380 | B144: 52.26497017 | C144: 24.61554353

Sheet IwoJima
A1: Time (days) | B1: USA | C1: Japan | D1: US Landed | I1: 0.0106 | J1: US lethality (alpha)
A2: 0 | B2: 0 | C2: 20 | D2: 0 | I2: 0.0544 | J2: Japanese lethality (beta)
A3: =A2+$I$3 -> 0.5 | B3: =MAX(0,B2+$I$3*(land(A2)-$I$2*C2)) -> 26.456 | C3: =MAX(0,C2-$I$3*$I$1*B2) -> 20 | D3: =D2+$I$3*land(A2) -> 27 | I3: 0.5 | J3: delta t (days)
A4: =A3+$I$3 -> 1 | B4: =MAX(0,B3+$I$3*(land(A3)-$I$2*C3)) -> 52.912 | C4: =MAX(0,C3-$I$3*$I$1*B3) -> 19.8597832 | D4: =D3+$I$3*land(A3) -> 54
A5: 1.5 | B5: 52.3718139 | C5: 19.5793496 | D5: 54
A6: 2 | B6: 51.83925559 | C6: 19.30177899 | D6: 54
A7: 2.5 | B7: 54.3142472 | C7: 19.02703093 | D7: 57
A8: 3 | B8: 56.79671196 | C8: 18.73916542 | D8: 60
A9: 3.5 | B9: 56.28700666 | C9: 18.43814285 | D9: 60
A10: 4 | B10: 55.78548917 | C10: 18.13982171 | D10: 60
A11: 4.5 | B11: 55.29208602 | C11: 17.84415862 | D11: 60
A12: 5 | B12: 54.80672491 | C12: 17.55111056 | D12: 60
A13: 5.5 | B13: 60.8293347 | C13: 17.26063492 | D13: 66.5
A14: 6 | B14: 66.85984543 | C14: 16.93823945 | D14: 73
A15: 6.5 | B15: 66.39912532 | C15: 16.58388227 | D15: 73
A16: 7 | B16: 65.94804372 | C16: 16.2319669 | D16: 73
A17: 7.5 | B17: 65.50653422 | C17: 15.88244227 | D17: 73
A18: 8 | B18: 65.07453179 | C18: 15.53525764 | D18: 73
A19: 8.5 | B19: 64.65197278 | C19: 15.19036262 | D19: 73
A20: 9 | B20: 64.23879492 | C20: 14.84770717 | D20: 73
A21: 9.5 | B21: 63.83493728 | C21: 14.50724155 | D21: 73
A22: 10 | B22: 63.44034031 | C22: 14.16891639 | D22: 73
A23: 10.5 | B23: 63.05494579 | C23: 13.83268258 | D23: 73
A24: 11 | B24: 62.67869682 | C24: 13.49849137 | D24: 73
A25: 11.5 | B25: 62.31153786 | C25: 13.16629428 | D25: 73
A26: 12 | B26: 61.95341465 | C26: 12.83604313 | D26: 73
A27: 12.5 | B27: 61.60427428 | C27: 12.50769003 | D27: 73
A28: 13 | B28: 61.26406511 | C28: 12.18118737 | D28: 73
A29: 13.5 | B29: 60.93273681 | C29: 11.85648783 | D29: 73
A30: 14 | B30: 60.61024035 | C30: 11.53354432 | D30: 73
A31: 14.5 | B31: 60.29652794 | C31: 11.21231005 | D31: 73
A32: 15 | B32: 59.99155311 | C32: 10.89273845 | D32: 73
A33: 15.5 | B33: 59.69527062 | C33: 10.57478322 | D33: 73
A34: 16 | B34: 59.40763652 | C34: 10.25839829 | D34: 73
A35: 16.5 | B35: 59.12860808 | C35: 9.943537813 | D35: 73
A36: 17 | B36: 58.85814386 | C36: 9.63015619 | D36: 73
A37: 17.5 | B37: 58.59620361 | C37: 9.318208027 | D37: 73
A38: 18 | B38: 58.34274835 | C38: 9.007648148 | D38: 73
A39: 18.5 | B39: 58.09774032 | C39: 8.698431582 | D39: 73
A40: 19 | B40: 57.86114298 | C40: 8.390513558 | D40: 73
A41: 19.5 | B41: 57.63292101 | C41: 8.0838495 | D41: 73
A42: 20 | B42: 57.4130403 | C42: 7.778395019 | D42: 73
A43: 20.5 | B43: 57.20146796 | C43: 7.474105905 | D43: 73
A44: 21 | B44: 56.99817228 | C44: 7.170938125 | D44: 73
A45: 21.5 | B45: 56.80312276 | C45: 6.868847812 | D45: 73
A46: 22 | B46: 56.6162901 | C46: 6.567791262 | D46: 73
A47: 22.5 | B47: 56.43764618 | C47: 6.267724924 | D47: 73
A48: 23 | B48: 56.26716406 | C48: 5.968605399 | D48: 73
A49: 23.5 | B49: 56.10481799 | C49: 5.67038943 | D49: 73
A50: 24 | B50: 55.9505834 | C50: 5.373033894 | D50: 73
A51: 24.5 | B51: 55.80443688 | C51: 5.076495802 | D51: 73
A52: 25 | B52: 55.66635619 | C52: 4.780732287 | D52: 73
A53: 25.5 | B53: 55.53632028 | C53: 4.485700599 | D53: 73
A54: 26 | B54: 55.41430922 | C54: 4.191358102 | D54: 73
A55: 26.5 | B55: 55.30030428 | C55: 3.897662263 | D55: 73
A56: 27 | B56: 55.19428787 | C56: 3.60457065 | D56: 73
A57: 27.5 | B57: 55.09624354 | C57: 3.312040924 | D57: 73
A58: 28 | B58: 55.00615603 | C58: 3.020030834 | D58: 73
A59: 28.5 | B59: 54.92401119 | C59: 2.728498207 | D59: 73
A60: 29 | B60: 54.84979604 | C60: 2.437400947 | D60: 73
A61: 29.5 | B61: 54.78349874 | C61: 2.146697028 | D61: 73
A62: 30 | B62: 54.72510858 | C62: 1.856344485 | D62: 73
A63: 30.5 | B63: 54.67461601 | C63: 1.566301409 | D63: 73
A64: 31 | B64: 54.63201261 | C64: 1.276525945 | D64: 73
A65: 31.5 | B65: 54.5972911 | C65: 0.9869762778 | D65: 73
A66: 32 | B66: 54.57044535 | C66: 0.697610635 | D66: 73
A67: 32.5 | B67: 54.55147034 | C67: 0.4083872746 | D67: 73
A68: =A67+$I$3 -> 33 | B68: =MAX(0,B67+$I$3*(land(A67)-$I$2*C67)) -> 54.5403622 | C68: =MAX(0,C67-$I$3*$I$1*B67) -> 0.1192644818 | D68: =D67+$I$3*land(A67) -> 73
A69: 33.5 | B69: 54.53711821 | C69: 0 | D69: 73
A70: 34 | B70: 54.53711821 | C70: 0 | D70: 73
A71: 34.5 | B71: 54.53711821 | C71: 0 | D71: 73
A72: 35 | B72: 54.53711821 | C72: 0 | D72: 73
A73: 35.5 | B73: 54.53711821 | C73: 0 | D73: 73
A74: 36 | B74: 54.53711821 | C74: 0 | D74: 73
A75: 36.5 | B75: 54.53711821 | C75: 0 | D75: 73
A76: 37 | B76: 54.53711821 | C76: 0 | D76: 73
A77: 37.5 | B77: 54.53711821 | C77: 0 | D77: 73
A78: 38 | B78: 54.53711821 | C78: 0 | D78: 73
A79: 38.5 | B79: 54.53711821 | C79: 0 | D79: 73
A80: 39 | B80: 54.53711821 | C80: 0 | D80: 73
A81: 39.5 | B81: 54.53711821 | C81: 0 | D81: 73
A82: 40 | B82: 54.53711821 | C82: 0 | D82: 73
A83: 40.5 | B83: 54.53711821 | C83: 0 | D83: 73
A84: 41 | B84: 54.53711821 | C84: 0 | D84: 73
A85: 41.5 | B85: 54.53711821 | C85: 0 | D85: 73
A86: 42 | B86: 54.53711821 | C86: 0 | D86: 73
A87: 42.5 | B87: 54.53711821 | C87: 0 | D87: 73
A88: 43 | B88: 54.53711821 | C88: 0 | D88: 73
A89: 43.5 | B89: 54.53711821 | C89: 0 | D89: 73
A90: 44 | B90: 54.53711821 | C90: 0 | D90: 73
A91: 44.5 | B91: 54.53711821 | C91: 0 | D91: 73
A92: 45 | B92: 54.53711821 | C92: 0 | D92: 73
A93: 45.5 | B93: 54.53711821 | C93: 0 | D93: 73
A94: 46 | B94: 54.53711821 | C94: 0 | D94: 73
A95: 46.5 | B95: 54.53711821 | C95: 0 | D95: 73
A96: 47 | B96: 54.53711821 | C96: 0 | D96: 73
A97: 47.5 | B97: 54.53711821 | C97: 0 | D97: 73
A98: 48 | B98: 54.53711821 | C98: 0 | D98: 73
A99: 48.5 | B99: 54.53711821 | C99: 0 | D99: 73
A100: 49 | B100: 54.53711821 | C100: 0 | D100: 73
A101: 49.5 | B101: 54.53711821 | C101: 0 | D101: 73
A102: 50 | B102: 54.53711821 | C102: 0 | D102: 73
A103: 50.5 | B103: 54.53711821 | C103: 0 | D103: 73
A104: 51 | B104: 54.53711821 | C104: 0 | D104: 73
A105: 51.5 | B105: 54.53711821 | C105: 0 | D105: 73
A106: 52 | B106: 54.53711821 | C106: 0 | D106: 73
A107: 52.5 | B107: 54.53711821 | C107: 0 | D107: 73
A108: 53 | B108: 54.53711821 | C108: 0 | D108: 73
A109: 53.5 | B109: 54.53711821 | C109: 0 | D109: 73
A110: 54 | B110: 54.53711821 | C110: 0 | D110: 73
A111: 54.5 | B111: 54.53711821 | C111: 0 | D111: 73
A112: 55 | B112: 54.53711821 | C112: 0 | D112: 73
A113: 55.5 | B113: 54.53711821 | C113: 0 | D113: 73
A114: 56 | B114: 54.53711821 | C114: 0 | D114: 73
A115: 56.5 | B115: 54.53711821 | C115: 0 | D115: 73
A116: 57 | B116: 54.53711821 | C116: 0 | D116: 73
A117: 57.5 | B117: 54.53711821 | C117: 0 | D117: 73
A118: 58 | B118: 54.53711821 | C118: 0 | D118: 73
A119: 58.5 | B119: 54.53711821 | C119: 0 | D119: 73
A120: 59 | B120: 54.53711821 | C120: 0 | D120: 73
A121: 59.5 | B121: 54.53711821 | C121: 0 | D121: 73
A122: 60 | B122: 54.53711821 | C122: 0 | D122: 73

Sheet Ambush
B1: Ambushee | C1: Ambusher
A2: time | B2: x | C2: y | F2: delta t | G2: 0.02
A3: 0 | B3: 100 | C3: 100 | F3: alpha | G3: 0.01
A4: =A3+$G$2 -> 0.02 | B4: =MAX(B3-$G$4*C3*$G$2,0) -> 99.8 | C4: =MAX(C3-$G$3*B3*C3*$G$2,0) -> 98 | F4: beta | G4: 0.1
A5: =A4+$G$2 -> 0.04 | B5: =MAX(B4-$G$4*C4*$G$2,0) -> 99.604 | C5: =MAX(C4-$G$3*B4*C4*$G$2,0) -> 96.04392
A6: 0.06 | B6: 99.41191216 | C6: 94.13064828
A7: 0.08 | B7: 99.22365086 | C7: 92.25910673
A8: 0.1 | B8: 99.03913265 | C8: 90.42824965
A9: 0.12 | B9: 98.85827615 | C9: 88.63706257
A10: 0.14 | B10: 98.68100203 | C10: 86.88456113
A11: 0.16 | B11: 98.5072329 | C11: 85.16979002
A12: 0.18 | B12: 98.33689332 | C12: 83.49182195
A13: 0.2 | B13: 98.16990968 | C13: 81.84975667
A14: 0.22 | B14: 98.00621017 | C14: 80.24272003
A15: 0.24 | B15: 97.84572473 | C15: 78.66986305
A16: 0.26 | B16: 97.688385 | C16: 77.1303611
A17: 0.28 | B17: 97.53412428 | C17: 75.62341302
A18: 0.3 | B18: 97.38287745 | C18: 74.14824034
A19: 0.32 | B19: 97.23458097 | C19: 72.70408654
A20: 0.34 | B20: 97.0891728 | C20: 71.29021626
A21: 0.36 | B21: 96.94659237 | C21: 69.90591464
A22: 0.38 | B22: 96.80678054 | C22: 68.5504866
A23: 0.4 | B23: 96.66967956 | C23: 67.22325621
A24: =A23+$G$2 -> 0.42 | B24: 96.53523305 | C24: 65.92356609
A25: =A24+$G$2 -> 0.44 | B25: 96.40338592 | C25: 64.65077672
A26: 0.46 | B26: 96.27408436 | C26: 63.40426597
A27: 0.48 | B27: 96.14727583 | C27: 62.18342844
A28: 0.5 | B28: 96.02290898 | C28: 60.98767499
A29: 0.52 | B29: 95.90093363 | C29: 59.8164322
A30: 0.54 | B30: 95.78130076 | C30: 58.66914186
A31: 0.56 | B31: 95.66396248 | C31: 57.54526051
A32: 0.58 | B32: 95.54887196 | C32: 56.44425898
A33: 0.6 | B33: 95.43598344 | C33: 55.36562193
A34: =A33+$G$2 -> 0.62 | B34: 95.3252522 | C34: 54.30884741 | K34: fighting str. | L34: final force levels
A35: =A34+$G$2 -> 0.64 | B35: 95.2166345 | C35: 53.2734465 | J35: Ambusher: | K35: =2*G4*C3 -> 20 | L35: =IF(K35>=K36,C3-G3*B3^2/2/G4,0) -> 0
A36: 0.66 | B36: 95.11008761 | C36: 52.25894284 | J36: Ambushee: | K36: =G3*B3^2 -> 100 | L36: =IF(K36>=K35,SQRT(B3^2-2*G4*C3/G3),0) -> 89.4427191
A37: 0.68 | B37: 95.00556972 | C37: 51.26487232
A38: 0.7 | B38: 94.90303998 | C38: 50.29078264
A39: 0.72 | B39: 94.80245841 | C39: 49.336233
A40: 0.74 | B40: 94.70378595 | C40: 48.40079377
A41: 0.76 | B41: 94.60698436 | C41: 47.48404609
A42: 0.78 | B42: 94.51201627 | C42: 46.58558161
A43: 0.8 | B43: 94.4188451 | C43: 45.70500216
A44: 0.82 | B44: 94.3274351 | C44: 44.84191945
A45: 0.84 | B45: 94.23775126 | C45: 43.9959548
A46: =A45+$G$2 -> 0.86 | B46: 94.14975935 | C46: 43.16673883
A47: =A46+$G$2 -> 0.88 | B47: 94.06342587 | C47: 42.35391122
A48: 0.9 | B48: 93.97871805 | C48: 41.55712042
A49: 0.92 | B49: 93.89560381 | C49: 40.77602344
A50: 0.94 | B50: 93.81405176 | C50: 40.01028557
A51: 0.96 | B51: 93.73403119 | C51: 39.25958017
A52: 0.98 | B52: 93.65551203 | C52: 38.52358843
A53: 1 | B53: 93.57846485 | C53: 37.80199915
A54: =A53+$G$2 -> 1.02 | B54: 93.50286086 | C54: 37.09450854
A55: =A54+$G$2 -> 1.04 | B55: 93.42867184 | C55: 36.40082001
A56: 1.06 | B56: 93.3558702 | C56: 35.72064395
A57: 1.08 | B57: 93.28442891 | C57: 35.05369759
A58: 1.1 | B58: 93.21432152 | C58: 34.39970476
A59: 1.12 | B59: 93.14552211 | C59: 33.75839573
A60: 1.14 | B60: 93.07800531 | C60: 33.12950705
A61: 1.16 | B61: 93.0117463 | C61: 32.51278137
A62: 1.18 | B62: 92.94672074 | C62: 31.90796725
A63: 1.2 | B63: 92.8829048 | C63: 31.31481907
A64: =A63+$G$2 -> 1.22 | B64: 92.82027516 | C64: 30.7330968
A65: =A64+$G$2 -> 1.24 | B65: 92.75880897 | C65: 30.1625659
A66: 1.26 | B66: 92.69848384 | C66: 29.60299716
A67: 1.28 | B67: 92.63927785 | C67: 29.05416657
A68: 1.3 | B68: 92.58116951 | C68: 28.51585517
A69: 1.32 | B69: =MAX(B68-$G$4*C68*$G$2,0) -> 92.5241378 | C69: =MAX(C68-$G$3*B68*C68*$G$2,0) -> 27.98784892
A70: 1.34 | B70: 92.4681621 | C70: 27.4699386
A71: 1.36 | B71: 92.41322223 | C71: 26.96191966
A72: 1.38 | B72: 92.35929839 | C72: 26.46359208
A73: 1.4 | B73: 92.3063712 | C73: 25.97476032
A74: 1.42 | B74: 92.25442168 | C74: 25.49523315
A75: =A74+$G$2 -> 1.44 | B75: 92.20343122 | C75: 25.02482355
A76: =A75+$G$2 -> 1.46 | B76: 92.15338157 | C76: 24.56334863
A77: =A76+$G$2 -> 1.48 | B77: 92.10425487 | C77: 24.1106295
A78: =A77+$G$2 -> 1.5 | B78: 92.05603361 | C78: 23.66649119
A79: =A78+$G$2 -> 1.52 | B79: 92.00870063 | C79: 23.23076253
A80: =A79+$G$2 -> 1.54 | B80: 91.96223911 | C80: 22.80327607
A81: 1.56 | B81: 91.91663255 | C81: 22.38386801
A82: 1.58 | B82: 91.87186482 | C82: 21.97237805
A83: 1.6 | B83: 91.82792006 | C83: 21.56864939
A84: 1.62 | B84: 91.78478276 | C84: 21.17252854
A85: 1.64 | B85: 91.74243771 | C85: 20.78386536
A86: 1.66 | B86: 91.70086997 | C86: 20.40251286
A87: 1.68 | B87: 91.66006495 | C87: 20.02832723
A88: 1.7 | B88: 91.62000829 | C88: 19.66116767
A89: =A88+$G$2 -> 1.72 | B89: 91.58068596 | C89: 19.3008964
A90: 1.74 | B90: 91.54208417 | C90: 18.94737854
A91: 1.76 | B91: 91.50418941 | C91: 18.60048203
A92: 1.78 | B92: 91.46698845 | C92: 18.26007763
A93: 1.8 | B93: 91.43046829 | C93: 17.92603876
A94: 1.82 | B94: 91.39461621 | C94: 17.59824154
A95: 1.84 | B95: 91.35941973 | C95: 17.27656463
A96: 1.86 | B96: 91.3248666 | C96: 16.96088925
A97: 1.88 | B97: 91.29094482 | C97: 16.65109906
A98: 1.9 | B98: 91.25764262 | C98: 16.34708015
A99: 1.92 | B99: 91.22494846 | C99: 16.04872095
A100: 1.94 | B100: 91.19285102 | C100: 15.7559122
A101: 1.96 | B101: 91.1613392 | C101: 15.46854689
A102: 1.98 | B102: 91.1304021 | C102: 15.1865202
A103: 2 | B103: 91.10002906 | C103: 14.90972946
A104: 2.02 | B104: =MAX(B103-$G$4*C103*$G$2,0) -> 91.0702096 | C104: =MAX(C103-$G$3*B103*C103*$G$2,0) -> 14.6380741
A105: 2.04 | B105: 91.04093346 | C105: 14.37145561
A106: 2.06 | B106: 91.01219054 | C106: 14.10977746
A107: 2.08 | B107: 90.98397099 | C107: 13.85294511
A108: 2.1 | B108: 90.9562651 | C108: 13.60086592
A109: 2.12 | B109: 90.92906337 | C109: 13.35344912
A110: 2.14 | B110: 90.90235647 | C110: 13.1106058
A111: 2.16 | B111: 90.87613526 | C111: 12.87224881
A112: 2.18 | B112: 90.85039076 | C112: 12.63829276
A113: 2.2 | B113: 90.82511417 | C113: 12.408654
A114: 2.22 | B114: 90.80029687 | C114: 12.18325051
A115: 2.24 | B115: 90.77593037 | C115: 11.96200196
A116: 2.26 | B116: 90.75200636 | C116: 11.74482959
A117: 2.28 | B117: 90.7285167 | C117: 11.53165622
A118: 2.3 | B118: 90.70545339 | C118: 11.32240621
A119: 2.32 | B119: 90.68280858 | C119: 11.11700541
A120: 2.34 | B120: 90.66057457 | C120: 10.91538115
A121: 2.36 | B121: 90.6387438 | C121: 10.71746221
A122: 2.38 | B122: 90.61730888 | C122: 10.52317875
A123: 2.4 | B123: 90.59626252 | C123: 10.33246232
A124: 2.42 | B124: 90.5755976 | C124: 10.14524582
A125: 2.44 | B125: 90.55530711 | C125: 9.961463484
A126: 2.46 | B126: =MAX(B125-$G$4*C125*$G$2,0) -> 90.53538418 | C126: =MAX(C125-$G$3*B125*C125*$G$2,0) -> 9.781050807
A127: 2.48 | B127: 90.51582208 | C127: 9.603944568
A128: 2.5 | B128: 90.49661419 | C128: 9.430082781
A129: 2.52 | B129: 90.47775402 | C129: 9.259404668
A130: 2.54 | B130: 90.45923521 | C130: 9.091850641
A131: 2.56 | B131: 90.44105151 | C131: 8.92736227
A132: 2.58 | B132: 90.42319679 | C132: 8.765882263
A133: 2.6 | B133: 90.40566502 | C133: 8.607354444
A134: 2.62 | B134: 90.38845031 | C134: 8.451723723
A135: 2.64 | B135: 90.37154687 | C135: 8.298936082
A136: 2.66 | B136: 90.35494899 | C136: 8.148938543
A137: 2.68 | B137: 90.33865112 | C137: 8.001679158
A138: 2.7 | B138: 90.32264776 | C138: 7.857106978
A139: 2.72 | B139: 90.30693355 | C139: 7.715172036
A140: 2.74 | B140: 90.2915032 | C140: 7.575825331
A141: 2.76 | B141: 90.27635155 | C141: 7.439018799
A142: 2.78 | B142: 90.26147351 | C142: 7.304705304
A143: 2.8 | B143: 90.2468641 | C143: 7.172838611
A144: 2.82 | B144: 90.23251842 | C144: 7.043373373
A145: 2.84 | B145: 90.21843168 | C145: 6.916265109
A146: 2.86 | B146: 90.20459915 | C146: 6.791470191
A147: 2.88 | B147: 90.19101621 | C147: 6.668945822
A148: 2.9 | B148: 90.17767832 | C148: 6.548650022

Sheet Linear Law
A1: time | B1: x | C1: y
A2: 0 | B2: 800 | C2: 1000 | E2: delta2 | F2: =1/12 -> 0.08333333333
A3: =A2+delta2 -> 0.08333333333 | B3: =MAX(B2-delta2*beta2*B2*C2,0) -> 733.3333333 | C3: =MAX(0,C2-delta2*alpha2*B2*C2) -> 866.6666667 | E3: alpha2 | F3: 0.002 | G3: x lethality against y
A4: 0.1666666667 | B4: 680.3703704 | C4: 760.7407407 | E4: beta2 | F4: 0.001 | G4: y lethality against x
A5: 0.25 | B5: 637.2382487 | C5: 674.4764975
A6: 0.3333333333 | B6: 601.4213969 | C6: 602.8427938 | E6: x_fs | F6: =B2*alpha2 -> 1.6
A7: 0.4166666667 | B7: 571.2078506 | C7: 542.4157013 | E7: y_fs | F7: =C2*beta2 -> 1
A8: 0.5 | B8: 545.3885084 | C8: 490.7770168 | E8: x_final | F8: =IF(F6>=F7,B2-beta2/alpha2*C2,0) -> 300
A9: 0.5833333333 | B9: 523.083163 | C9: 446.1663259 | E9: y_final | F9: =IF(F7>=F6,C2-alpha2/beta2*B2,0) -> 0
A10: 0.6666666667 | B10: 503.6346552 | C10: 407.2693104
A11: 0.75 | B11: 486.5417437 | C11: 373.0834873
A12: 0.8333333333 | B12: 471.4150195 | C12: 342.8300389
A13: 0.9166666667 | B13: 457.9470837 | C13: 315.8941673 | F13: =0.002*800*1000/(24*60*60) -> 0.01851851852
A14: 1 | B14: 445.8918493 | C14: 291.7836986
A15: 1.083333333 | B15: 435.0498515 | C15: 270.0997031
A16: 1.166666667 | B16: 425.2576152 | C16: 250.5152304 | F16: =beta2*B2*C2/(beta2*B2*C2+alpha2*B2*C2) -> 0.3333333333
A17: 1.25 | B17: 416.3798228 | C17: 232.7596455
A18: 1.333333333 | B18: 408.3034544 | C18: 216.6069089
A19: 1.416666667 | B19: 400.933342 | C19: 201.866684 | F19: =0.002*B2*C2/24/60/60 -> 0.01851851852
A20: 1.5 | B20: 394.1887517 | C20: 188.3775033
A21: 1.583333333 | B21: 388.0007272 | C21: 176.0014545
A22: 1.666666667 | B22: 382.3100029 | C22: 164.6200058
A23: 1.75 | B23: 377.0653466 | C23: 154.1306933
A24: 1.833333333 | B24: 372.2222347 | C24: 144.4444694
A25: 1.916666667 | B25: 367.7417811 | C25: 135.4835622
A26: 2 | B26: 363.5898672 | C26: 127.1797345
A27: 2.083333333 | B27: 359.7364287 | C27: 119.4728573
A28: 2.166666667 | B28: 356.1548671 | C28: 112.3097342
A29: 2.25 | B29: 352.8215622 | C29: 105.6431244
A30: 2.333333333 | B30: 349.7154645 | C30: 99.43092906
A31: 2.416666667 | B31: 346.8177534 | C31: 93.6355068
A32: 2.5 | B32: 344.1115487 | C32: 88.22309745
A33: 2.583333333 | B33: 341.5816665 | C33: 83.163333
A34: 2.666666667 | B34: 339.2144107 | C34: 78.42882135
A35: 2.75 | B35: 336.9973951 | C35: 73.99479028
A36: 2.833333333 | B36: 334.9193908 | C36: 69.83878169
A37: 2.916666667 | B37: 332.970194 | C37: 65.94038798
A38: 3 | B38: 331.140512 | C38: 62.28102402
A39: 3.083333333 | B39: 329.4218645 | C39: 58.84372899
A40: 3.166666667 | B40: 327.8064969 | C40: 55.61299384
A41: 3.25 | B41: 326.2873052 | C41: 52.57461039
A42: 3.333333333 | B42: 324.8577695 | C42: 49.71553906
A43: 3.416666667 | B43: 323.5118963 | C43: 47.02379254
A44: 3.5 | B44: 322.2441666 | C44: 44.48833316
A45: 3.583333333 | B45: 321.0494911 | C45: 42.09898219
A46: 3.666666667 | B46: 319.9231697 | C46: 39.84633939
A47: 3.75 | B47: 318.8608558 | C47: 37.72171152
A48: 3.833333333 | B48: 317.8585243 | C48: 35.71704865
A49: 3.916666667 | B49: 316.9124436 | C49: 33.82488725
A50: 4 | B50: 316.0191497 | C50: 32.03829931
A51: 4.083333333 | B51: 315.1754233 | C51: 30.35084662
A52: 4.166666667 | B52: 314.3782699 | C52: 28.7565398
A53: 4.25 | B53: 313.6249006 | C53: 27.24980126
A54: 4.333333333 | B54: 312.9127159 | C54: 25.82543189
A55: 4.416666667 | B55: 312.2392904 | C55: 24.47858089
A56: 4.5 | B56: 311.6023592 | C56: 23.20471843
A57: 4.583333333 | B57: 310.9998055 | C57: 21.99961093
A58: 4.666666667 | B58: 310.4296492 | C58: 20.85929848
A59: 4.75 | B59: 309.8900372 | C59: 19.78007436
A60: 4.833333333 | B60: 309.3792332 | C60: 18.75846636
A61: 4.916666667 | B61: 308.8956099 | C61: 17.79121971
A62: 5 | B62: 308.4376407 | C62: 16.87528143
A63: 5.083333333 | B63: 308.003893 | C63: 16.0077861
A64: 5.166666667 | B64: 307.5930213 | C64: 15.18604269
A65: 5.25 | B65: 307.2037613 | C65: 14.40752257
A66: 5.333333333 | B66: 306.8349242 | C66: 13.66984838
A67: =A66+delta2 -> 5.416666667 | B67: =MAX(B66-delta2*beta2*B66*C66,0) -> 306.4853919 | C67: =MAX(0,C66-delta2*alpha2*B66*C66) -> 12.9707839
A68: 5.5 | B68: 306.1541123 | C68: 12.3082246
A69: 5.583333333 | B69: 305.8400945 | C69: 11.680189
A70: 5.666666667 | B70: 305.5424053 | C70: 11.08481065
A71: 5.75 | B71: 305.2601654 | C71: 10.5203307
A72: 5.833333333 | B72: 304.9925455 | C72: 9.985091053
A73: 5.916666667 | B73: 304.738764 | C73: 9.477527997
A74: 6 | B74: 304.4980832 | C74: 8.996166302
A75: 6.083333333 | B75: 304.2698069 | C75: 8.539613736
A76: 6.166666667 | B76: 304.053278 | C76: 8.106555966
A77: 6.25 | B77: 303.8478759 | C77: 7.695751813
A78: 6.333333333 | B78: 303.6530144 | C78: 7.30602884
A79: 6.416666667 | B79: 303.4681396 | C79: 6.936279226
A80: 6.5 | B80: 303.292728 | C80: 6.585455934
A81: 6.583333333 | B81: 303.1262846 | C81: 6.252569118
A82: 6.666666667 | B82: 302.9683414 | C82: 5.936682777
A83: 6.75 | B83: 302.8184558 | C83: 5.636911622
A84: 6.833333333 | B84: 302.6762091 | C84: 5.352418143
A85: 6.916666667 | B85: 302.5412049 | C85: 5.082409871
A86: 7 | B86: 302.4130684 | C86: 4.826136803
A87: 7.083333333 | B87: 302.2914445 | C87: 4.582888996
A88: 7.166666667 | B88: 302.1759972 | C88: 4.351994307
A89: 7.25 | B89: 302.0664081 | C89: 4.132816271
A90: 7.333333333 | B90: 301.9623761 | C90: 3.92475211
A91: 7.416666667 | B91: 301.8636154 | C91: 3.727230864
A92: 7.5 | B92: 301.7698558 | C92: 3.539711634
A93: 7.583333333 | B93: 301.680841 | C93: 3.361681922
A94: 7.666666667 | B94: 301.596328 | C94: 3.192656084
A95: 7.75 | B95: 301.5160869 | C95: 3.032173859
A96: 7.833333333 | B96: 301.4398995 | C96: 2.879798992
A97: 7.916666667 | B97: 301.367559 | C97: 2.735117939
A98: 8 | B98: 301.2988693 | C98: 2.597738636
A99: 8.083333333 | B99: 301.2336447 | C99: 2.467289351
A100: 8.166666667 | B100: 301.1717088 | C100: 2.34341759
A101: 8.25 | B101: 301.1128945 | C101: 2.225789077
A102: 8.333333333 | B102: 301.0570434 | C102: 2.114086778
A103: 8.416666667 | B103: 301.004005 | C103: 2.008009992
A104: 8.5 | B104: 300.9536367 | C104: 1.907273484
A105: 8.583333333 | B105: 300.9058033 | C105: 1.811606669
A106: 8.666666667 | B106: 300.8603764 | C106: 1.720752842
A107: 8.75 | B107: 300.8172342 | C107: 1.634468451
A108: 8.833333333 | B108: 300.7762612 | C108: 1.552522404
A109: 8.916666667 | B109: 300.7373477 | C109: 1.474695424
A110: 9 | B110: 300.7003897 | C110: 1.400779425
A111: 9.083333333 | B111: 300.6652885 | C111: 1.330576939
A112: 9.166666667 | B112: 300.6319503 | C112: 1.263900556
A113: 9.25 | B113: 300.6002862 | C113: 1.200572407
A114: 9.333333333 | B114: 300.5702118 | C114: 1.140423673
A115: 9.416666667 | B115: 300.5416471 | C115: 1.083294108
A116: 9.5 | B116: 300.5145158 | C116: 1.029031609
A117: 9.583333333 | B117: 300.4887459 | C117: 0.9774917866
A118: 9.666666667 | B118: 300.4642688 | C118: 0.9285375731
A119: 9.75 | B119: 300.4410194 | C119: 0.8820388459
A120: 9.833333333 | B120: 300.418936 | C120: 0.8378720709
A121: 9.916666667 | B121: 300.39796 | C121: 0.7959199649
A122: 10 | B122: 300.3780356 | C122: 0.7560711759
A123: 10.08333333 | B123: 300.35911 | C123: 0.7182199802
A124: 10.16666667 | B124: 300.341133 | C124: 0.6822659945
A125: 10.25 | B125: 300.324057 | C125: 0.6481139042
A126: 10.33333333 | B126: 300.3078366 | C126: 0.6156732047
A127: 10.41666667 | B127: 300.292429 | C127: 0.5848579567
A128: 10.5 | B128: 300.2777933 | C128: 0.5555865539
A129: 10.58333333 | B129: 300.2638908 | C129: 0.5277815032
A130: 10.66666667 | B130: 300.2506846 | C130: 0.5013692152
A131: =A130+delta2 -> 10.75 | B131: =MAX(B130-delta2*beta2*B130*C130,0) -> 300.2381399 | C131: =MAX(0,C130-delta2*alpha2*B130*C130) -> 0.4762798069
A132: 10.83333333 | B132: 300.2262235 | C132: 0.452446913
A133: 10.91666667 | B133: 300.2149038 | C133: 0.4298075083
A134: 11 | B134: 300.2041509 | C134: 0.4083017384
A135: 11.08333333 | B135: 300.1939364 | C135: 0.3878727589
A136: 11.16666667 | B136: 300.1842333 | C136: 0.3684665839
A137: 11.25 | B137: 300.175016 | C137: 0.3500319407
A138: 11.33333333 | B138: 300.1662601 | C138: 0.3325201335
A139: 11.41666667 | B139: 300.1579425 | C139: 0.3158849127
A140: 11.5 | B140: 300.1500412 | C140: 0.3000823518
A141: 11.58333333 | B141: 300.1425354 | C141: 0.2850707301
A142: 11.66666667 | B142: 300.1354052 | C142: 0.2708104215
A143: 11.75 | B143: 300.1286319 | C143: 0.2572637889
A144: 11.83333333 | B144: 300.1221975 | C144: 0.244395084
A145: 11.91666667 | B145: 300.1160852 | C145: 0.2321703524
A146: 12 | B146: 300.1102787 | C146: 0.2205573429
A147: 12.08333333 | B147: 300.1047627 | C147: 0.2095254219
A148: 12.16666667 | B148: 300.0995227 | C148: 0.1990454924
A149: 12.25 | B149: 300.094545 | C149: 0.1890899162
A150: 12.33333333 | B150: 300.0898162 | C150: 0.1796324408
A151: 12.41666667 | B151: 300.0853241 | C151: 0.1706481298
A152: 12.5 | B152: 300.0810566 | C152: 0.1621132966
A153: 12.58333333 | B153: 300.0770027 | C153: 0.1540054417
A154: 12.66666667 | B154: 300.0731516 | C154: 0.1463031931
A155: 12.75 | B155: 300.0694931 | C155: 0.1389862498
A156: 12.83333333 | B156: 300.0660177 | C156: 0.1320353275
A157: 12.91666667 | B157: 300.0627161 | C157: 0.1254321083
A158: 13 | B158: 300.0595796 | C158: 0.1191591918
A159: 13.08333333 | B159: 300.0566 | C159: 0.113200049
A160: 13.16666667 | B160: 300.0537695 | C160: 0.1075389787
A161: 13.25 | B161: 300.0510805 | C161: 0.102161066
A162: 13.33333333 | B162: 300.0485261 | C162: 0.09705214299
A163: 13.41666667 | B163: 300.0460994 | C163: 0.09219875092
A164: 13.5 | B164: 300.0437941 | C164: 0.08758810499
A165: 13.58333333 | B165: 300.041604 | C165: 0.08320806043
A166: 13.66666667 | B166: 300.0395235 | C166: 0.07904708044
A167: 13.75 | B167: 300.0375471 | C167: 0.07509420572
A168: 13.83333333 | B168: 300.0356695 | C168: 0.0713390255
A169: 13.91666667 | B169: 300.0338858 | C169: 0.06777165012
A170: 14 | B170: 300.0321913 | C170: 0.06438268487
A171: 14.08333333 | B171: 300.0305816 | C171: 0.0611632052
A172: 14.16666667 | B172: 300.0290524 | C172: 0.05810473319
A173: 14.25 | B173: 300.0275996 | C173: 0.05519921519
A174: 14.33333333 | B174: 300.0262195 | C174: 0.05243900051
A175: 14.41666667 | B175: 300.0249084 | C175: 0.04981682134
A176: 14.5 | B176: 300.0236629 | C176: 0.04732577346
A177: 14.58333333 | B177: 300.0224796 | C177: 0.04495929814
A178: 14.66666667 | B178: 300.0213556 | C178: 0.04271116479
A179: 14.75 | B179: 300.0202877 | C179: 0.04057545453
A180: 14.83333333 | B180: 300.0192733 | C180: 0.03854654461
A181: 14.91666667 | B181: 300.0183095 | C181: 0.03661909356
A182: 15 | B182: 300.017394 | C182: 0.03478802713
A183: 15.08333333 | B183: 300.0165243 | C183: 0.03304852492
A184: 15.16666667 | B184: 300.015698 | C184: 0.03139600766
A185: 15.25 | B185: 300.0149131 | C185: 0.02982612514
A186: 15.33333333 | B186: 300.0141674 | C186: 0.02833474475
A187: 15.41666667 | B187: 300.013459 | C187: 0.0269179406
A188: 15.5 | B188: 300.012786 | C188: 0.02557198319
A189: 15.58333333 | B189: 300.0121467 | C189: 0.02429332954
A190: 15.66666667 | B190: 300.0115393 | C190: 0.02307861388
A191: 15.75 | B191: 300.0109623 | C191: 0.0219246388
A192: 15.83333333 | B192: 300.0104142 | C192: 0.0208283668
A193: 15.91666667 | B193: 300.0098935 | C193: 0.01978691231
A194: 16 | B194: 300.0093988 | C194: 0.01879753407
A195: =A194+delta2 -> 16.08333333 | B195: =MAX(B194-delta2*beta2*B194*C194,0) -> 300.0089288 | C195: =MAX(0,C194-delta2*alpha2*B194*C194) -> 0.01785762792
A196: 16.16666667 | B196: 300.0084824 | C196: 0.01696471995
A197: 16.25 | B197: 300.0080582 | C197: 0.01611645997
A198: 16.33333333 | B198: 300.0076553 | C198: 0.01531061533
A199: 16.41666667 | B199: 300.0072725 | C199: 0.01454506503
A200: 16.5 | B200: 300.0069089 | C200: 0.01381779414
... 29 more rows

Sheet Square Law
A1: time | B1: x-type | C1: y-type | H1: delta | I1: 0.01
A2: 0 | B2: 10 | C2: 8 | H2: alpha | I2: 1 | K2: x lethality against y
A3: =A2+delta -> 0.01 | B3: =MAX(B2-delta*beta1*C2,0) -> 9.84 | C3: =MAX(C2-delta*alpha1*B2,0) -> 7.9 | H3: beta | I3: 2 | K3: y lethality against x
A4: =A3+delta -> 0.02 | B4: 9.682 | C4: 7.8016
A5: 0.03 | B5: 9.525968 | C5: 7.70478 | H5: x-fight. str. | I5: =I2*B2^2 -> 100 | K5: =IF(I5>=I6,"x wins with ","y wins with ") -> y wins with | L5: =IF(I5>=I6,SQRT(B2^2-beta1/alpha1*C2^2),SQRT(C2^2-alpha1/beta1*B2^2)) -> 3.741657387 | M5: survivors
A6: 0.04 | B6: 9.3718724 | C6: 7.60952032 | H6: y-fight. str. | I6: =I3*C2^2 -> 128
A7: 0.05 | B7: 9.219681994 | C7: 7.515801596
A8: 0.06 | B8: 9.069365962 | C8: 7.423604776
A9: 0.07 | B9: 8.920893866 | C9: 7.332911116
A10: 0.08 | B10: 8.774235644 | C10: 7.243702178
A11: 0.09 | B11: 8.6293616 | C11: 7.155959821
A12: 0.1 | B12: 8.486242404 | C12: 7.069666205
A13: 0.11 | B13: 8.34484908 | C13: 6.984803781
A14: 0.12 | B14: 8.205153004 | C14: 6.901355291
A15: 0.13 | B15: 8.067125898 | C15: 6.81930376
A16: 0.14 | B16: 7.930739823 | C16: 6.738632501
A17: 0.15 | B17: 7.795967173 | C17: 6.659325103
A18: 0.16 | B18: 7.662780671 | C18: 6.581365432
A19: 0.17 | B19: 7.531153362 | C19: 6.504737625
A20: 0.18 | B20: 7.40105861 | C20: 6.429426091
A21: 0.19 | B21: 7.272470088 | C21: 6.355415505
A22: 0.2 | B22: 7.145361778 | C22: 6.282690804
A23: 0.21 | B23: 7.019707962 | C23: 6.211237186
A24: 0.22 | B24: 6.895483218 | C24: 6.141040107
A25: 0.23 | B25: 6.772662416 | C25: 6.072085275
A26: 0.24 | B26: 6.651220711 | C26: 6.00435865
A27: 0.25 | B27: 6.531133537 | C27: 5.937846443
A28: 0.26 | B28: 6.412376609 | C28: 5.872535108
A29: 0.27 | B29: 6.294925906 | C29: 5.808411342
A30: 0.28 | B30: 6.17875768 | C30: 5.745462083
A31: 0.29 | B31: 6.063848438 | C31: 5.683674506
A32: 0.3 | B32: 5.950174948 | C32: 5.623036022
A33: 0.31 | B33: 5.837714227 | C33: 5.563534272
A34: 0.32 | B34: 5.726443542 | C34: 5.50515713
A35: 0.33 | B35: =MAX(B34-delta*beta1*C34,0) -> 5.616340399 | C35: =MAX(C34-delta*alpha1*B34,0) -> 5.447892694
A36: 0.34 | B36: 5.507382545 | C36: 5.39172929
A37: 0.35 | B37: 5.39954796 | C37: 5.336655465
A38: 0.36 | B38: 5.29281485 | C38: 5.282659985
A39: 0.37 | B39: 5.187161651 | C39: 5.229731837
A40: 0.38 | B40: 5.082567014 | C40: 5.17786022
A41: 0.39 | B41: 4.97900981 | C41: 5.12703455
A42: 0.4 | B42: 4.876469119 | C42: 5.077244452
A43: 0.41 | B43: 4.774924229 | C43: 5.028479761
A44: 0.42 | B44: 4.674354634 | C44: 4.980730519
A45: 0.43 | B45: 4.574740024 | C45: 4.933986972
A46: 0.44 | B46: 4.476060284 | C46: 4.888239572
A47: 0.45 | B47: 4.378295493 | C47: 4.843478969
A48: 0.46 | B48: 4.281425914 | C48: 4.799696014
A49: 0.47 | B49: 4.185431993 | C49: 4.756881755
A50: 0.48 | B50: 4.090294358 | C50: 4.715027435
A51: 0.49 | B51: 3.99599381 | C51: 4.674124492
A52: 0.5 | B52: 3.90251132 | C52: 4.634164554
A53: 0.51 | B53: 3.809828029 | C53: 4.59513944
A54: 0.52 | B54: 3.71792524 | C54: 4.55704116
A55: 0.53 | B55: 3.626784417 | C55: 4.519861908
A56: 0.54 | B56: 3.536387178 | C56: 4.483594064
A57: 0.55 | B57: 3.446715297 | C57: 4.448230192
A58: 0.56 | B58: 3.357750693 | C58: 4.413763039
A59: 0.57 | B59: 3.269475433 | C59: 4.380185532
A60: 0.58 | B60: 3.181871722 | C60: 4.347490778
A61: 0.59 | B61: 3.094921906 | C61: 4.31567206
A62: 0.6 | B62: 3.008608465 | C62: 4.284722841
A63: 0.61 | B63: 2.922914008 | C63: 4.254636757
A64: 0.62 | B64: 2.837821273 | C64: 4.225407617
A65: 0.63 | B65: 2.753313121 | C65: 4.197029404
A66: 0.64 | B66: 2.669372533 | C66: 4.169496273
A67: 0.65 | B67: =MAX(B66-delta*beta1*C66,0) -> 2.585982607 | C67: =MAX(C66-delta*alpha1*B66,0) -> 4.142802547
A68: =A67+delta -> 0.66 | B68: 2.503126556 | C68: 4.116942721
A69: 0.67 | B69: 2.420787702 | C69: 4.091911456
A70: 0.68 | B70: 2.338949473 | C70: 4.067703579
A71: 0.69 | B71: 2.257595401 | C71: 4.044314084
A72: 0.7 | B72: 2.17670912 | C72: 4.02173813
A73: 0.71 | B73: 2.096274357 | C73: 3.999971039
A74: 0.72 | B74: 2.016274936 | C74: 3.979008295
A75: 0.73 | B75: 1.93669477 | C75: 3.958845546
A76: 0.74 | B76: 1.857517859 | C76: 3.939478598
A77: 0.75 | B77: 1.778728287 | C77: 3.920903419
A78: 0.76 | B78: 1.700310219 | C78: 3.903116137
A79: 0.77 | B79: 1.622247896 | C79: 3.886113034
A80: 0.78 | B80: 1.544525636 | C80: 3.869890555
A81: 0.79 | B81: 1.467127825 | C81: 3.854445299
A82: 0.8 | B82: 1.390038919 | C82: 3.839774021
A83: 0.81 | B83: 1.313243438 | C83: 3.825873632
A84: 0.82 | B84: 1.236725966 | C84: 3.812741197
A85: 0.83 | B85: 1.160471142 | C85: 3.800373938
A86: 0.84 | B86: 1.084463663 | C86: 3.788769226
A87: 0.85 | B87: 1.008688278 | C87: 3.77792459
A88: 0.86 | B88: 0.9331297865 | C88: 3.767837707
A89: 0.87 | B89: 0.8577730324 | C89: 3.758506409
A90: 0.88 | B90: 0.7826029042 | C90: 3.749928679
A91: 0.89 | B91: =MAX(B90-delta*beta1*C90,0) -> 0.7076043306 | C91: =MAX(C90-delta*alpha1*B90,0) -> 3.74210265
A92: 0.9 | B92: 0.6327622776 | C92: 3.735026606
A93: 0.91 | B93: 0.5580617455 | C93: 3.728698983
A94: 0.92 | B94: 0.4834877658 | C94: 3.723118366
A95: 0.93 | B95: 0.4090253985 | C95: 3.718283488
A96: 0.94 | B96: 0.3346597287 | C96: 3.714193234
A97: 0.95 | B97: 0.2603758641 | C97: 3.710846637
A98: 0.96 | B98: 0.1861589313 | C98: 3.708242878
A99: 0.97 | B99: 0.1119940737 | C99: 3.706381289
A100: 0.98 | B100: 0.03786644796 | C100: 3.705261348
A101: 0.99 | B101: 0 | C101: 3.704882684
A102: 1 | B102: 0 | C102: 3.704882684
A103: 1.01 | B103: =MAX(B102-delta*beta1*C102,0) -> 0 | C103: =MAX(C102-delta*alpha1*B102,0) -> 3.704882684
A104: 1.02 | B104: 0 | C104: 3.704882684
A105: 1.03 | B105: 0 | C105: 3.704882684
A106: 1.04 | B106: 0 | C106: 3.704882684
A107: 1.05 | B107: 0 | C107: 3.704882684
A108: 1.06 | B108: 0 | C108: 3.704882684
A109: 1.07 | B109: 0 | C109: 3.704882684
A110: 1.08 | B110: 0 | C110: 3.704882684
A111: 1.09 | B111: 0 | C111: 3.704882684
A112: 1.1 | B112: 0 | C112: 3.704882684
A113: 1.11 | B113: =MAX(B112-delta*beta1*C112,0) -> 0 | C113: =MAX(C112-delta*alpha1*B112,0) -> 3.704882684
A114: 1.12 | B114: 0 | C114: 3.704882684
A115: 1.13 | B115: 0 | C115: 3.704882684
A116: 1.14 | B116: 0 | C116: 3.704882684
A117: 1.15 | B117: 0 | C117: 3.704882684
A118: 1.16 | B118: 0 | C118: 3.704882684
A119: 1.17 | B119: 0 | C119: 3.704882684

Sheet Minelayers
A1: Time | B1: Mines | C1: CntrLayer | D1: Sweeper | E1: ShipLoss | F1: Layers
A2: 0 | B2: 0 | C2: 30 | D2: 6 | E2: 30 | F2: 20 | I2: 10 | J2: Mines Laid/Layer/Day
A3: =A2+$I$10 -> 1 | B3: =MAX(B2+$I$10*($I$2*F2-$I$3*D2*B2-($I$4+$I$5)*B2-$I$6*C2*B2),0) -> 200 | C3: =MAX(C2-$I$10*$I$6*C2*B2,0) -> 30 | D3: =MAX(D2-$I$10*$I$7*D2*B2) -> 6 | E3: =E2+$I$10*$I$4*B2 -> 30 | F3: =MAX(F2+$I$10*($I$9-$I$8*C2*F2),0) -> 9 | I3: 0.1 | J3: Mines swept/Sweeper/Mine/Day
A4: =A3+$I$10 -> 2 | B4: =MAX(B3+$I$10*($I$2*F3-$I$3*D3*B3-($I$4+$I$5)*B3-$I$6*C3*B3),0) -> 161.4 | C4: =MAX(C3-$I$10*$I$6*C3*B3,0) -> 29.4 | D4: =MAX(D3-$I$10*$I$7*D3*B3) -> 4.8 | E4: =E3+$I$10*$I$4*B3 -> 34 | F4: =MAX(F3+$I$10*($I$9-$I$8*C3*F3),0) -> 4.6 | I4: 0.02 | J4: Mines exploded by Ships/Mine/Day
A5: 3 | B5: 122.997484 | C5: 28.925484 | D5: 4.02528 | E5: =E4+$I$10*$I$4*B4 -> 37.228 | F5: 2.8952 | I5: 0.02 | J5: Mine attrition/Mine/Day
A6: 4 | B6: 97.16387722 | C6: 28.56970782 | D6: 3.530180688 | E6: 39.68794968 | F6: 2.220298774 | I6: 0.0001 | J6: Mines exploded/CntrLayer/Mine/Day
A7: 5 | B7: 80.90211123 | C7: 28.29211347 | D7: 3.187174645 | E7: 41.63122722 | F7: 1.951633029 | I7: 0.001 | J7: Sweepers sunk/Sweeper/Mine/Day
A8: 6 | B8: 71.16855214 | C8: 28.0632243 | D8: 2.929325487 | E8: 43.24926945 | F8: 1.847316567 | I8: 0.02 | J8: Layers sunk/CntrLayer/Layer/Day
A9: 7 | B9: 65.74766845 | C9: 27.86350239 | D9: 2.720849633 | E9: 44.67264049 | F9: 1.810483384 | I9: 1 | J9: Layer reinforcements/Day
A10: 8 | B10: 63.15044756 | C10: 27.68030636 | D10: 2.541960114 | E10: 45.98759386 | F10: 1.801555222 | I10: 1 | J10: Delta_days
A11: 9 | B11: 62.41258762 | C11: 27.50550399 | D11: 2.381434195 | E11: 47.25060281 | F11: 1.804203213
A12: 10 | B12: 62.92330024 | C12: 27.33383502 | D12: 2.232802725 | E12: 48.49885456 | F12: 1.811692839
A13: 11 | B13: 64.30177149 | C13: 27.16184151 | D13: 2.092307408 | E13: 49.75732057 | F13: 1.821282576
A14: 12 | B14: 66.31396365 | C14: 26.98718605 | D14: 1.957768336 | E14: 51.043356 | F14: 1.831894803
A15: 13 | B15: 68.81865258 | C15: 26.80822333 | D15: 1.827940957 | E15: 52.36963527 | F15: 1.843141085
A16: 14 | B16: 71.73318338 | C16: 26.62373275 | D16: 1.702144524 | E16: 53.74600832 | F16: 1.854914328
A17: 15 | B17: 75.01199429 | C17: 26.43275224 | D17: 1.580044278 | E17: 55.18067199 | F17: 1.867219462
A18: 16 | B18: 78.63320455 | C18: 26.23447489 | D18: 1.461522006 | E18: 56.68091188 | F18: 1.880104474
A19: 17 | B19: 82.59021514 | C19: 26.02818481 | D19: 1.346597847 | E19: 58.25357597 | F19: 1.893633402
A20: 18 | B20: 86.88639262 | C20: 25.81321747 | D20: 1.235382041 | E20: 59.90538027 | F20: 1.907876599
A21: 19 | B21: 91.53163226 | C21: 25.58893573 | D21: 1.128044152 | E21: 61.64310812 | F21: 1.922907928
A22: =A21+$I$10 -> 20 | B22: 96.54005429 | C22: 25.35471603 | D22: =MAX(D21-$I$10*$I$7*D21*B21) -> 1.02479243 | E22: 63.47374077 | F22: =MAX(F21+$I$10*($I$9-$I$8*C21*F21),0) -> 1.93880458
A23: 21 | B23: 101.9283717 | C23: 25.10994146 | D23: 0.9258589128 | E23: 65.40454185 | F23: 1.955647789
A24: 22 | B24: 107.714644 | C24: 24.85399992 | D24: 0.8314876215 | E24: 67.44310929 | F24: 1.973523759
A25: 23 | B25: 113.9172426 | C25: 24.58628594 | D25: 0.7419242283 | E25: 69.59740217 | F25: 1.992524572
A26: 24 | B26: 120.5539222 | C26: 24.30620575 | D26: 0.657406266 | E26: 71.87574702 | F26: 2.012748995
A27: 25 | B27: 127.640944 | C27: 24.01318491 | D27: 0.5781533622 | E27: 74.28682546 | F27: 2.034303171
A28: 26 | B28: 135.1922273 | C28: 23.70667835 | D28: 0.5043573213 | E28: 76.83964434 | F28: 2.057301207
A29: 27 | B29: 143.2185354 | C29: 23.38618248 | D29: 0.4361721317 | E29: 79.54348889 | F29: 2.081865647
A30: 28 | B30: 151.7267236 | C30: 23.051249 | D30: 0.3737041978 | E30: 82.4078596 | F30: 2.108127849
A31: 29 | B31: 160.7190928 | C31: 22.70149996 | D31: 0.3170032842 | E31: 85.44239407 | F31: 2.136228249
A32: 30 | B32: 170.1929071 | C32: 22.33664351 | D32: 0.266054804 | E32: 88.65677592 | F32: 2.166316539
A33: =A32+$I$10 -> 31 | B33: 180.1401383 | C33: =MAX(C32-$I$10*$I$6*C32*B32,0) -> 21.95648968 | D33: =MAX(D32-$I$10*$I$7*D32*B32) -> 0.2207741635 | E33: 92.06063407 | F33: =MAX(F32+$I$10*($I$9-$I$8*C32*F32),0) -> 2.198551734
A34: 32 | B34: 190.5474968 | C34: 21.56096517 | D34: 0.1810038751 | E34: 95.66343683 | F34: 2.233102165
A35: 33 | B35: 201.3967962 | C35: 21.15012638 | D35: 0.1465140398 | E35: 99.47438677 | F35: 2.270145405
A36: 34 | B36: 212.6656758 | C36: 20.72416961 | D36: 0.1170065816 | E36: 103.5023227 | F36: 2.309868161
A37: 35 | B37: 224.3286701 | C37: 20.28343765 | D37: 0.09212329785 | E37: 107.7556362 | F37: 2.35246617
A38: 36 | B38: 236.3585796 | C38: 19.82842199 | D38: 0.07145740096 | E38: 112.2422096 | F38: 2.398144152
A39: 37 | B39: 248.7280592 | C39: 19.35976023 | D39: 0.05456783117 | E39: 116.9693812 | F39: 2.447115867
A40: 38 | B40: 261.4113089 | C40: 18.87822867 | D40: 0.04099528043 | E40: 121.9439424 | F40: 2.499604338
A41: 39 | B41: 274.3857387 | C41: 18.38473042 | D41: 0.03027865051 | E41: 127.1721686 | F41: 2.555842293
A42: 40 | B42: 287.6334783 | C42: 17.88027964 | D42: 0.02197062063 | E42: 132.6598833 | F42: 2.616072862
A43: 41 | B43: 301.1426225 | C43: 17.36598294 | D43: 0.01565113459 | E43: 138.4125529 | F43: 2.680550575
A44: 42 | B44: 314.9081372 | C44: 16.84301917 | D44: 0.01093791088 | E44: 144.4354054 | F44: 2.749542664
A45: 43 | B45: 328.9323942 | C45: 16.31261879 | D45: 0.007493473739 | E45: 150.7335681 | F45: 2.823330668
A46: 44 | B46: 343.2253456 | C46: 15.77604392 | D46: 0.005028627481 | E46: 157.312216 | F46: 2.90221233
A47: 45 | B47: 357.8043861 | C47: 15.2345701 | D47: 0.003302675076 | E47: 164.1767229 | F47: 2.986503746
A48: 46 | B48: 372.6939773 | C48: 14.6894705 | D48: 0.002120963448 | E48: 171.3328106 | F48: 3.076541732
A49: 47 | B49: 387.9251208 | C49: 14.14200279 | D49: 0.001330493145 | E49: 178.7866902 | F49: 3.172686352
A50: 48 | B50: 403.5347625 | C50: 13.59339897 | D50: 0.0008143614308 | E50: 186.5451926 | F50: 3.275323567
A51: 49 | B51: 419.5652045 | C51: 13.04485807 | D51: 0.0004857382842 | E51: 194.6158878 | F51: 3.384867967
A52: 50 | B52: 436.0635792 | C52: 12.49754121 | D52: 0.0002819394017 | E52: 203.0071919 | F52: 3.501765523
A53: 51 | B53: 453.0814247 | C53: 11.95256896 | D53: 0.0001589958971 | E53: 211.7284635 | F53: 3.626496344
A54: 52 | B54: 470.6743786 | C54: 11.41102026 | D54: 8.695780951e-05 | E54: 220.790092 | F54: 3.759577391
A55: 53 | B55: 488.901997 | C55: 10.87393278 | D55: 4.602899655e-05 | E55: 230.2035796 | F55: 3.901565115
A56: 54 | B56: 507.8276892 | C56: 10.34230403 | D56: 2.352532822e-05 | E56: 239.9816195 | F56: 4.05305798
A57: 55 | B57: 527.5187559 | C57: 9.817093195 | D57: 1.157851515e-05 | E57: 250.1381733 | F57: 4.214698822
A58: 56 | B58: 548.046513 | C58: 9.299223116 | D58: 5.470631244e-06 | E58: 260.6885484 | F58: 4.387177
A59: 57 | B59: 569.486482 | C59: 8.789582436 | D59: 2.472470867e-06 | E59: 271.6494787 | F59: 4.571230244
A60: 58 | B60: 591.9186295 | C60: 8.289027598 | D60: 1.064432131e-06 | E60: 283.0392083 | F60: 4.767646143
A61: 59 | B61: 615.4276398 | C61: 7.798384612 | D61: 4.343749228e-07 | E61: 294.8775809 | F61: 4.977263134
A62: 60 | B62: 640.1032046 | C62: 7.318450468 | D62: 1.670485893e-07 | E62: 307.1861337 | F62: 5.200970889

Sheet FlakBomb
A1: Time | B1: Attack_Ac | C1: Supp_Ac | D1: CumBomb | E1: FlakSite | F1: N | H1: 1 | I1: Bombs per Attacker
A2: 0 | B2: 10 | C2: 30 | D2: 0 | E2: 30 | F2: =E2*EXP(-C2/(E2+0.000001)) -> 11.0363836 | H2: 1 | I2: Missions per day
A3: =A2+$H$9 -> 1 | B3: =MAX(B2+$H$9*($H$4-$H$3*F2),0) -> 9.54818082 | C3: =MAX(C2-$H$9*$H$6*E2,0) -> 29.4 | D3: =D2+$H$9*$H$1*B2*(1-EXP(-0.5*($H$7/($H$8*(1+0.5*(F2/(B2+0.000001)))))^2)) -> 1.874914979 | E3: =MAX(E2-$H$9*$H$5*C2,0) -> 27 | F3: =E3*EXP(-C3/(E3+0.000001)) -> 9.087937797 | H3: 0.05 | I3: Prob Flak Kills Attack
A4: 2 | B4: =MAX(B3+$H$9*($H$4-$H$3*F3),0) -> 9.19378393 | C4: =MAX(C3-$H$9*$H$6*E3,0) -> 28.86 | D4: =D3+$H$9*$H$1*B3*(1-EXP(-0.5*($H$7/($H$8*(1+0.5*(F3/(B3+0.000001)))))^2)) -> 3.833248468 | E4: =MAX(E3-$H$9*$H$5*C3,0) -> 24.06 | F4: 7.250348332 | H4: 0.1 | I4: Attack resupply rate
A5: 3 | B5: 8.931266513 | C5: 28.3788 | D5: 5.918199086 | E5: 21.174 | F5: 5.542843924 | H5: 0.1 | I5: Supp kills Flak
A6: 4 | B6: 8.754124317 | C6: 27.95532 | D6: 8.174688762 | E6: 18.33612 | F6: 3.99190704 | H6: 0.02 | I6: Flak kills Supp
A7: 5 | B7: 8.654528965 | C7: 27.5885976 | D7: 10.64512405 | E7: 15.540588 | F7: 2.633185783 | H7: 100 | I7: Lethal Radius (meters)
A8: 6 | B8: 8.622869676 | C8: 27.27778584 | D8: 13.36145341 | E8: 12.78172824 | F8: 1.51269586 | H8: 100 | I8: Firing Error (meters)
A9: 7 | B9: 8.647234883 | C9: 27.02215128 | D9: 16.33346565 | E9: 10.05394966 | F9: 0.6840329621 | H9: 1 | I9: delta
A10: 8 | B10: 8.713033235 | C10: 26.82107228 | D10: 19.53643383 | E10: 7.351734528 | F10: 0.191411876 | H10: =B2+C2 -> 40 | I10: Total A/C
A11: 9 | B11: 8.803462641 | C11: 26.67403759 | D11: 22.90732965 | E11: 4.6696273 | F11: 0.01543433439
A12: 10 | B12: 8.902690924 | C12: 26.58064505 | D12: 26.36654569 | E12: 2.002223541 | F12: 3.435671449e-06
A13: 11 | B13: 9.002690753 | C13: 26.54060057 | D13: 29.86948057 | E13: 0 | F13: 0
A14: 12 | B14: 9.102690753 | C14: 26.54060057 | D14: 33.41176336 | E14: 0 | F14: 0
A15: 13 | B15: 9.202690753 | C15: 26.54060057 | D15: 36.99339309 | E15: 0 | F15: 0
A16: 14 | B16: 9.302690753 | C16: 26.54060057 | D16: 40.61436975 | E16: 0 | F16: 0
A17: 15 | B17: 9.402690753 | C17: 26.54060057 | D17: 44.27469334 | E17: 0 | F17: 0
A18: 16 | B18: 9.502690753 | C18: 26.54060057 | D18: 47.97436387 | E18: 0 | F18: 0
A19: 17 | B19: 9.602690753 | C19: 26.54060057 | D19: 51.71338133 | E19: 0 | F19: 0
A20: 18 | B20: 9.702690753 | C20: 26.54060057 | D20: 55.49174573 | E20: 0 | F20: 0
A21: 19 | B21: 9.802690753 | C21: 26.54060057 | D21: 59.30945706 | E21: 0 | F21: 0
A22: 20 | B22: 9.902690753 | C22: 26.54060057 | D22: 63.16651532 | E22: 0 | F22: =E22*EXP(-C22/(E22+0.000001)) -> 0
A23: 21 | B23: =MAX(B22+$H$9*($H$4-$H$3*F22),0) -> 10.00269075 | C23: =MAX(C22-$H$9*$H$6*E22,0) -> 26.54060057 | D23: =D22+$H$9*$H$1*B22*(1-EXP(-0.5*($H$7/($H$8*(1+0.5*(F22/(B22+0.000001)))))^2)) -> 67.06292052 | E23: =MAX(E22-$H$9*$H$5*C22,0) -> 0 | F23: =E23*EXP(-C23/(E23+0.000001)) -> 0
A24: 22 | B24: 10.10269075 | C24: 26.54060057 | D24: 70.99867265 | E24: 0 | F24: 0
A25: 23 | B25: 10.20269075 | C25: 26.54060057 | D25: 74.97377171 | E25: 0 | F25: 0
A26: 24 | B26: 10.30269075 | C26: 26.54060057 | D26: 78.98821771 | E26: 0 | F26: 0
A27: 25 | B27: 10.40269075 | C27: 26.54060057 | D27: 83.04201065 | E27: 0 | F27: 0
A28: 26 | B28: 10.50269075 | C28: 26.54060057 | D28: 87.13515051 | E28: 0 | F28: 0
A29: 27 | B29: 10.60269075 | C29: 26.54060057 | D29: 91.26763732 | E29: 0 | F29: 0
A30: 28 | B30: 10.70269075 | C30: 26.54060057 | D30: 95.43947105 | E30: 0 | F30: 0
A31: 29 | B31: 10.80269075 | C31: 26.54060057 | D31: 99.65065172 | E31: 0 | F31: =E31*EXP(-C31/(E31+0.000001)) -> 0
A32: 30 | B32: =MAX(B31+$H$9*($H$4-$H$3*F31),0) -> 10.90269075 | C32: =MAX(C31-$H$9*$H$6*E31,0) -> 26.54060057 | D32: =D31+$H$9*$H$1*B31*(1-EXP(-0.5*($H$7/($H$8*(1+0.5*(F31/(B31+0.000001)))))^2)) -> 103.9011793 | E32: =MAX(E31-$H$9*$H$5*C31,0) -> 0 | F32: =E32*EXP(-C32/(E32+0.000001)) -> 0

Sheet FlakBomb (2)
A1: Time | B1: u | C1: Atk_Ac (in) | D1: Supp_Ac(in) | E1: Tot.A/C avail | F1: Atk.A/C (out) | G1: Supp A/C(out) | H1: CumBomb | I1: FlakSite | J1: N | L1: 1 | M1: Bombs per Attacker
A2: 0 | B2: 0.2 | E2: 40 | F2: =B2*E2 -> 8 | G2: =(1-B2)*E2 -> 32 | H2: 0 | I2: 30 | J2: =I2*EXP(-G2/(I2+0.000001)) -> 10.32461397 | L2: 1 | M2: Missions per day
A3: =A2+$L$9 -> 1 | B3: 0.2 | C3: =MAX(F2+$L$9*($L$4-$L$3*J2),0) -> 7.583769301 | D3: =MAX(G2-$L$9*$L$6*I2,0) -> 31.4 | E3: =C3+D3 -> 38.9837693 | F3: =B3*E3 -> 7.79675386 | G3: =(1-B3)*E3 -> 31.18701544 | H3: =H2+$L$9*$L$1*F2*(1-EXP(-0.5*($L$7/($L$8*(1+0.5*(J2/(F2+0.000001)))))^2)) -> 1.349224788 | I3: =MAX(I2-$L$9*$L$5*G2,0) -> 26.8 | J3: =I3*EXP(-G3/(I3+0.000001)) -> 8.370447308 | L3: 0.05 | M3: Prob Flak Kills Attack
A4: 2 | B4: 0.2 | C4: =MAX(F3+$L$9*($L$4-$L$3*J3),0) -> 7.478231495 | D4: =MAX(G3-$L$9*$L$6*I3,0) -> 30.65101544 | E4: =C4+D4 -> 38.12924694 | F4: =B4*E4 -> 7.625849387 | G4: =(1-B4)*E4 -> 30.50339755 | H4: =H3+$L$9*$L$1*F3*(1-EXP(-0.5*($L$7/($L$8*(1+0.5*(J3/(F3+0.000001)))))^2)) -> 2.836848542 | I4: =MAX(I3-$L$9*$L$5*G3,0) -> 23.68129846 | J4: =I4*EXP(-G4/(I4+0.000001)) -> 6.53130057 | L4: 0.1 | M4: Attack resupply rate
A5: 3 | B5: 0.2 | C5: =MAX(F4+$L$9*($L$4-$L$3*J4),0) -> 7.399284359 | D5: =MAX(G4-$L$9*$L$6*I4,0) -> 30.02977158 | E5: =C5+D5 -> 37.42905594 | F5: =B5*E5 -> 7.485811188 | G5: =(1-B5)*E5 -> 29.94324475 | H5: =H4+$L$9*$L$1*F4*(1-EXP(-0.5*($L$7/($L$8*(1+0.5*(J4/(F4+0.000001)))))^2)) -> 4.494601524 | I5: =MAX(I4-$L$9*$L$5*G4,0) -> 20.6309587 | J5: =I5*EXP(-G5/(I5+0.000001)) -> 4.83276368 | L5: 0.1 | M5: Supp kills Flak
A6: 4 | B6: 0.2 | C6: =MAX(F5+$L$9*($L$4-$L$3*J5),0) -> 7.344173004 | D6: =MAX(G5-$L$9*$L$6*I5,0) -> 29.53062558 | E6: =C6+D6 -> 36.87479858 | F6: =B6*E6 -> 7.374959716 | G6: =(1-B6)*E6 -> 29.49983886 | H6: =H5+$L$9*$L$1*F5*(1-EXP(-0.5*($L$7/($L$8*(1+0.5*(J5/(F5+0.000001)))))^2)) -> 6.355191882 | I6: =MAX(I5-$L$9*$L$5*G5,0) -> 17.63663423 | J6: =I6*EXP(-G6/(I6+0.000001)) -> 3.311273011 | L6: 0.02 | M6: Flak kills Supp
A7: 5 | B7: 0.2 | C7: 7.309396066 | D7: 29.14710618 | E7: 36.45650225 | F7: 7.291300449 | G7: 29.1652018 | H7: 8.446483031 | I7: 14.68665034 | J7: 2.015985848 | L7: 100 | M7: Lethal Radius (meters)
A8: 6 | B8: 0.2 | C8: 7.290501157 | D8: 28.87146879 | E8: 36.16196995 | F8: 7.232393989 | G8: 28.92957596 | H8: 10.78097796 | I8: 11.77013016 | J8: 1.007714073 | L8: 100 | M8: Firing Error (meters)
A9: 7 | B9: 0.2 | C9: 7.282008286 | D9: 28.69417335 | E9: 35.97618164 | F9: 7.195236328 | G9: 28.78094531 | H9: 13.34141267 | I9: 8.877172564 | J9: 0.3469251291 | L9: 1 | M9: delta
A10: 8 | B10: 0.2 | C10: 7.277890071 | D10: 28.60340186 | E10: 35.88129193 | F10: 7.176258386 | G10: 28.70503355 | H10: 16.06980299 | I10: 5.999078033 | J10: 0.05012171568
A11: 9 | B11: 0.2 | C11: 7.273752301 | D11: 28.58505198 | E11: 35.85880429 | F11: 7.171760857 | G11: 28.68704343 | H11: 18.87829343 | I11: 3.128574679 | J11: 0.0003259441113
A12: 10 | B12: 0.2 | C12: 7.27174456 | D12: 28.62447193 | E12: 35.89621649 | F12: 7.179243299 | G12: 28.7169732 | H12: 21.7000626 | I12: 0.2598703358 | J12: 2.649883304e-49
A13: 11 | B13: 0.2 | C13: 7.279243299 | D13: 28.71177579 | E13: 35.99101909 | F13: 7.198203818 | G13: 28.79281527 | H13: 24.52487472 | I13: 0 | J13: 0
A14: 12 | B14: 0.2 | C14: 7.298203818 | D14: 28.79281527 | E14: 36.09101909 | F14: 7.218203818 | G14: 28.87281527 | H14: 27.35714723 | I14: 0 | J14: 0
A15: 13 | B15: 0.2 | C15: 7.318203818 | D15: 28.87281527 | E15: 36.19101909 | F15: 7.238203818 | G15: 28.95281527 | H15: 30.19728912 | I15: 0 | J15: 0
A16: 14 | B16: 0.2 | C16: 7.338203818 | D16: 28.95281527 | E16: 36.29101909 | F16: 7.258203818 | G16: 29.03281527 | H16: 33.0453004 | I16: 0 | J16: 0
A17: 15 | B17: 0.2 | C17: 7.358203818 | D17: 29.03281527 | E17: 36.39101909 | F17: 7.278203818 | G17: 29.11281527 | H17: 35.90118107 | I17: 0 | J17: 0
A18: 16 | B18: 0.2 | C18: 7.378203818 | D18: 29.11281527 | E18: 36.49101909 | F18: 7.298203818 | G18: 29.19281527 | H18: 38.76493113 | I18: 0 | J18: 0
A19: 17 | B19: 0.2 | C19: 7.398203818 | D19: 29.19281527 | E19: 36.59101909 | F19: 7.318203818 | G19: 29.27281527 | H19: 41.63655057 | I19: 0 | J19: 0
A20: 18 | B20: 0.2 | C20: 7.418203818 | D20: 29.27281527 | E20: 36.69101909 | F20: 7.338203818 | G20: 29.35281527 | H20: 44.5160394 | I20: 0 | J20: 0
A21: 19 | B21: 0.2 | C21: 7.438203818 | D21: 29.35281527 | E21: 36.79101909 | F21: 7.358203818 | G21: 29.43281527 | H21: 47.40339761 | I21: 0 | J21: 0
A22: 20 | B22: 0.2 | C22: 7.458203818 | D22: 29.43281527 | E22: 36.89101909 | F22: 7.378203818 | G22: 29.51281527 | H22: 50.29862521 | I22: 0 | J22: 0
A23: 21 | B23: 0.2 | C23: 7.478203818 | D23: 29.51281527 | E23: 36.99101909 | F23: 7.398203818 | G23: 29.59281527 | H23: 53.2017222 | I23: 0 | J23: 0
A24: 22 | B24: 0.2 | C24: 7.498203818 | D24: 29.59281527 | E24: 37.09101909 | F24: 7.418203818 | G24: 29.67281527 | H24: 56.11268858 | I24: 0 | J24: 0
A25: 23 | B25: 0.2 | C25: 7.518203818 | D25: 29.67281527 | E25: 37.19101909 | F25: 7.438203818 | G25: 29.75281527 | H25: 59.03152434 | I25: 0 | J25: 0
A26: 24 | B26: 0.2 | C26: 7.538203818 | D26: 29.75281527 | E26: 37.29101909 | F26: 7.458203818 | G26: 29.83281527 | H26: 61.95822949 | I26: 0 | J26: 0
A27: 25 | B27: 0.2 | C27: 7.558203818 | D27: 29.83281527 | E27: 37.39101909 | F27: 7.478203818 | G27: 29.91281527 | H27: 64.89280402 | I27: 0 | J27: 0
A28: 26 | B28: 0.2 | C28: 7.578203818 | D28: 29.91281527 | E28: 37.49101909 | F28: 7.498203818 | G28: 29.99281527 | H28: 67.83524795 | I28: 0 | J28: 0
A29: 27 | B29: 0.2 | C29: 7.598203818 | D29: 29.99281527 | E29: 37.59101909 | F29: 7.518203818 | G29: 30.07281527 | H29: 70.78556126 | I29: 0 | J29: 0
A30: 28 | B30: 0.2 | C30: 7.618203818 | D30: 30.07281527 | E30: 37.69101909 | F30: 7.538203818 | G30: 30.15281527 | H30: 73.74374395 | I30: 0 | J30: 0
A31: 29 | B31: 0.2 | C31: 7.638203818 | D31: 30.15281527 | E31: 37.79101909 | F31: 7.558203818 | G31: 30.23281527 | H31: 76.70979603 | I31: 0 | J31: 0
A32: 30 | B32: 0.2 | C32: 7.658203818 | D32: 30.23281527 | E32: 37.89101909 | F32: 7.578203818 | G32: 30.31281527 | H32: 79.6837175 | I32: 0 | J32: 0

Sheet Atlantic
A1: time(days) | B1: .5mer_snk | C1: subs | D1: escorts
A2: 0 | B2: 0 | C2: 50 | D2: 100 | J2: 0.01 | K2: prob any given pack attacks any given convoy
A3: =A2+$J$12 -> 50 | B3: =B2+5*$J$12*$J$6*$J$6*$J$3*$J$2*$J$4*C2/(D2*$J$5) -> 25 | C3: =C2+$J$12*($J$10-C2*($J$9/$J$5+D2*(2*$J$2*$J$4/(100*$J$3*$J$5)))) -> 82.6 | D3: =D2+$J$12*($J$11-C2*D2*(2*$J$4*$J$2/(500*$J$3*$J$5))) -> 124.92 | J3: 50 | K3: cycle time for escort
A4: =A3+$J$12 -> 100 | B4: =B3+5*$J$12*$J$6*$J$6*$J$3*$J$2*$J$4*C3/(D3*$J$5) -> 58.06115914 | C4: 113.4705286 | D4: 149.7549057 | J4: 20 | K4: patrol time for submarine in days
A5: 150 | B5: 95.94657201 | C5: 142.572286 | D5: 174.4830214 | J5: 50 | K5: cycle time for submarine in days
A6: 200 | B6: 136.8022051 | C6: 169.8792791 | D6: 199.0849983 | J6: 1 | K6: rate at which convoys leave USA
A7: 250 | B7: 179.4672176 | C7: 195.3784747 | D7: 223.5438717 | J7: 40 | K7: convoy size
A8: 300 | B8: 223.1674706 | C8: 219.0692828 | D8: 247.8450611 | J8: 4 | K8: wolf-pack size
A9: 350 | B9: 267.3622756 | C9: 240.9628923 | D9: 271.9763373 | J9: 0.04 | K9: non-escort probability of sub loss per cycle
A10: 400 | B10: 311.6607787 | C10: 261.0814803 | D10: 295.927758 | J10: 0.7 | K10: submarine rate of production
A11: 450 | B11: 355.7731461 | C11: 279.4573205 | D11: 319.6915779 | J11: 0.5 | K11: escort rate of production
A12: 500 | B12: 399.4804784 | C12: 296.1318155 | D12: 343.2621355 | J12: 50 | K12: time interval (days)
A13: 550 | B13: 442.615416 | C13: 311.1544758 | D13: 366.635722
A14: 600 | B14: 485.0491529 | C14: 324.5818691 | D14: 389.8104365 | F14: The Battle of the Atlantic as Lanchester equations
A15: 650 | B15: 526.6824494 | C15: 336.4765623 | D15: 412.7860301 | F15: The update equations in cols B:D are based on
A16: 700 | B16: 567.4392262 | C16: 346.9060738 | D16: 435.5637449 | F16: statistics about convoy engagements from WWII.
A17: 750 | B17: 607.2618788 | C17: 355.9418542 | D17: 458.1461496 | F17: Change the green inputs to see how things might
A18: 800 | B18: 646.107764 | C18: 363.6583088 | D18: 480.5369753 | F18: have gone with different data or starting point.
A19: 850 | B19: 683.9465076 | C19: 370.1318754 | D19: 502.7409551
A20: =A19+$J$12 -> 900 | B20: 720.7578984 | C20: 375.4401642 | D20: 524.7636679
A21: 950 | B21: 756.5302077 | C21: 379.661169 | D21: 546.6113901
A22: 1000 | B22: 791.2588262 | C22: 382.8725527 | D22: 568.2909562
A23: 1050 | B23: 824.9451403 | C23: 385.1510098 | D23: 589.8096281
A24: 1100 | B24: 857.5955915 | C24: 386.5717075 | D24: 611.1749757
A25: 1150 | B25: 889.2208807 | C25: 387.2078029 | D25: 632.3947684
A26: 1200 | B26: 919.8352867 | C26: 387.1300357 | D26: 653.4768774
A27: 1250 | B27: 949.4560773 | C27: 386.4063921 | D27: 674.429189
A28: 1300 | B28: 978.1029982 | C28: 385.1018365 | D28: 695.259529
A29: 1350 | B29: 1005.797824 | C29: 383.2781053 | D29: 715.9755975
A30: 1400 | B30: 1032.563967 | C30: 380.9935594 | D30: 736.5849131
A31: 1450 | B31: 1058.426129 | C31: 378.3030884 | D31: 757.0947674
A32: 1500 | B32: 1083.409995 | C32: 375.2580618 | D32: 777.5121868
A33: 1550 | B33: 1107.541968 | C33: 371.906322 | D33: 797.8439033
A34: 1600 | B34: 1130.848928 | C34: 368.2922138 | D34: 818.0963323
A35: 1650 | B35: 1153.358027 | C35: 364.4566445 | D35: 838.2755561
A36: 1700 | B36: 1175.096502 | C36: 360.437171 | D36: 858.3873146
A37: 1750 | B37: 1196.091521 | C37: 356.2681086 | D37: 878.4369994
A38: 1800 | B38: 1216.370045 | C38: 351.9806572 | D38: 898.429654
A39: 1850 | B39: 1235.958705 | C39: 347.6030421 | D39: 918.3699763
A40: =A39+$J$12 -> 1900 | B40: 1254.883705 | C40: 343.1606646 | D40: 938.2623251
A41: =A40+$J$12 -> 1950 | B41: 1273.170737 | C41: 338.6762602 | D41: 958.1107295
A42: =A41+$J$12 -> 2000 | B42: 1290.844908 | C42: 334.1700611 | D42: 977.9188998

Sheet Control
A2: Time | B2: Merchants | C2: Subs | D2: Escorts | E2: MOE1 | F2: MOE2 | G2: MerFrac
A3: 0 | B3: 50 | C3: 15 | D3: 8 | E3: =3*C3-B3-D3 -> -13 | F3: =3*C3+($B$3-B3)+($D$3-D3) -> 45 | G3: 0.2 | I3: 2 | J3: Merchants lost/Sub/Day
A4: =A3+$I$6 -> 0.1 | B4: =MAX(B3-$I$6*$I$3*C3*G3,0) -> 49.4 | C4: =MAX(C3-$I$6*$I$4*D3,0) -> 14.2 | D4: =MAX(D3-$I$6*$I$5*C3*(1-G3),0) -> 7.4 | E4: =3*C4-B4-D4 -> -14.2 | F4: =3*C4+($B$3-B4)+($D$3-D4) -> 43.8 | G4: 0.2 | I4: 1 | J4: Subs lost/Escort/Day
A5: =A4+$I$6 -> 0.2 | B5: =MAX(B4-$I$6*$I$3*C4*G4,0) -> 48.832 | C5: =MAX(C4-$I$6*$I$4*D4,0) -> 13.46 | D5: =MAX(D4-$I$6*$I$5*C4*(1-G4),0) -> 6.832 | E5: -15.284 | F5: 42.716 | G5: 0.2 | I5: 0.5 | J5: Escorts lost/Sub/Day
A6: 0.3 | B6: 48.2936 | C6: 12.7768 | D6: 6.2936 | E6: -16.2568 | F6: 41.7432 | G6: 0.2 | I6: 0.1 | J6: Delta
A7: 0.4 | B7: 47.782528 | C7: 12.14744 | D7: 5.782528 | E7: -17.122736 | F7: 40.877264 | G7: 0.2
A8: 0.5 | B8: 47.2966304 | C8: 11.5691872 | D8: 5.2966304 | E8: -17.8856992 | F8: 40.1143008 | G8: 0.2
A9: 0.6 | B9: 46.83386291 | C9: 11.03952416 | D9: 4.833862912 | E9: -18.54915334 | F9: 39.45084666 | G9: 0.2
A10: 0.7 | B10: 46.39228195 | C10: 10.55613787 | D10: 4.392281946 | E10: -19.11615028 | F10: 38.88384972 | G10: 0.2
A11: 0.8 | B11: 45.97003643 | C11: 10.11690967 | D11: 3.970036431 | E11: -19.58934384 | F11: 38.41065616 | G11: 0.2
A12: 0.9 | B12: 45.56536004 | C12: 9.719906031 | D12: 3.565360044 | E12: -19.97100199 | F12: 38.02899801 | G12: 0.2
A13: 1 | B13: 45.1765638 | C13: 9.363370027 | D13: 3.176563803 | E13: -20.26301752 | F13: 37.73698248 | G13: 0.2
A14: 1.1 | B14: 44.802029 | C14: 9.045713647 | D14: 2.802029002 | E14: -20.46691706 | F14: 37.53308294 | G14: 0.2
A15: 1.2 | B15: 44.44020046 | C15: 8.765510746 | D15: 2.440200456 | E15: -20.58386867 | F15: 37.41613133 | G15: 0.2
A16: 1.3 | B16: 44.08958003 | C16: 8.521490701 | D16: 2.089580026 | E16: -20.61468795 | F16: 37.38531205 | G16: 0.2
A17: 1.4 | B17: 43.7487204 | C17: 8.312532698 | D17: 1.748720398 | E17: -20.5598427 | F17: 37.4401573 | G17: 0.2
A18: 1.5 | B18: 43.41621909 | C18: 8.137660658 | D18: 1.41621909 | E18: -20.4194562 | F18: 37.5805438 | G18: 0.2
A19: 1.6 | B19: 43.09071266 | C19: 7.996038749 | D19: 1.090712664 | E19: -20.19330908 | F19: 37.80669092 | G19: 0.2
A20: 1.7 | B20: 42.77087111 | C20: 7.886967483 | D20: 0.7708711136 | E20: -19.88083978 | F20: 38.11916022 | G20: 0.2
A21: 1.8 | B21: 42.45539241 | C21: 7.809880372 | D21: 0.4553924143 | E21: -19.48114371 | F21: 38.51885629 | G21: 0.2
A22: 1.9 | B22: 42.1429972 | C22: 7.76434113 | D22: 0.1429971994 | E22: -18.99297101 | F22: 39.00702899 | G22: 0.2
A23: =A22+$I$6 -> 2 | B23: 41.83242355 | C23: 7.75004141 | D23: 0 | E23: -18.58229932 | F23: 39.41770068 | G23: 0.2

Sheet SquareLawRnd
A1: time | B1: x | C1: y | H1: delta | I1: 0.001 | L1: time | M1: x_det | N1: y_det
A2: 0 | B2: 10 | C2: 8 | D2: Final difference x-y : | F2: =B2000-C2000 -> 7 | H2: alpha | I2: 1 | L2: =A2 -> 0 | M2: =B2 -> 10 | N2: =C2 -> 8
A3: =A2+delta -> 0.001 | B3: =IF(RAND()<(beta*C2*delta),MAX(B2-1,0),B2) -> 10 | C3: =IF(RAND()<(alpha*B2*delta),MAX(C2-1,0),C2) -> 8 | H3: beta | I3: 2 | L3: =A3 -> 0.001 | M3: =MAX(0,M2-delta*beta*N2) -> 9.984 | N3: =MAX(0,N2-delta*alpha*M2) -> 7.99
A4: 0.002 | B4: 10 | C4: 8 | L4: 0.002 | M4: =MAX(0,M3-delta*beta*N3) -> 9.96802 | N4: =MAX(0,N3-delta*alpha*M3) -> 7.980016
A5: 0.003 | B5: 10 | C5: 8 | L5: 0.003 | M5: 9.952059968 | N5: 7.97004798
A6: 0.004 | B6: 10 | C6: 8 | L6: 0.004 | M6: 9.936119872 | N6: 7.96009592
A7: 0.005 | B7: 10 | C7: 8 | L7: 0.005 | M7: 9.92019968 | N7: 7.9501598
A8: 0.006 | B8: 10 | C8: 8 | L8: 0.006 | M8: 9.904299361 | N8: 7.9402396
A9: 0.007 | B9: 10 | C9: 8 | L9: 0.007 | M9: 9.888418881 | N9: 7.930335301
A10: 0.008 | B10: 10 | C10: 8 | L10: 0.008 | M10: 9.872558211 | N10: 7.920446882
A11: 0.009 | B11: 10 | C11: 8 | L11: 0.009 | M11: 9.856717317 | N11: 7.910574324
A12: 0.01 | B12: 10 | C12: 8 | L12: 0.01 | M12: 9.840896168 | N12: 7.900717607
A13: 0.011 | B13: 10 | C13: 8 | L13: 0.011 | M13: 9.825094733 | N13: 7.890876711 | V13: =MAX(1,2) -> 2
A14: 0.012 | B14: 10 | C14: 8 | L14: 0.012 | M14: 9.80931298 | N14: 7.881051616
A15: 0.013 | B15: 10 | C15: 8 | L15: 0.013 | M15: 9.793550877 | N15: 7.871242303
A16: 0.014 | B16: 10 | C16: 8 | L16: 0.014 | M16: 9.777808392 | N16: 7.861448752
A17: 0.015 | B17: 10 | C17: 8 | L17: 0.015 | M17: 9.762085494 | N17: 7.851670944
A18: 0.016 | B18: 10 | C18: 8 | L18: 0.016 | M18: 9.746382153 | N18: 7.841908858
A19: 0.017 | B19: 10 | C19: 8 | L19: 0.017 | M19: 9.730698335 | N19: 7.832162476
A20: 0.018 | B20: 10 | C20: 8 | L20: 0.018 | M20: 9.71503401 | N20: 7.822431778
A21: 0.019 | B21: 10 | C21: 8 | L21: 0.019 | M21: 9.699389146 | N21: 7.812716744
A22: 0.02 | B22: 10 | C22: 8 | L22: 0.02 | M22: 9.683763713 | N22: 7.803017354
A23: 0.021 | B23: 10 | C23: 8 | L23: 0.021 | M23: 9.668157678 | N23: 7.793333591
A24: 0.022 | B24: 10 | C24: 8 | L24: 0.022 | M24: 9.652571011 | N24: 7.783665433
A25: 0.023 | B25: 10 | C25: 8 | L25: 0.023 | M25: 9.63700368 | N25: 7.774012862
A26: 0.024 | B26: 10 | C26: 8 | L26: 0.024 | M26: 9.621455654 | N26: 7.764375858
A27: 0.025 | B27: 10 | C27: 8 | L27: 0.025 | M27: 9.605926903 | N27: 7.754754403
A28: 0.026 | B28: 10 | C28: 7 | L28: 0.026 | M28: 9.590417394 | N28: 7.745148476
A29: 0.027 | B29: 10 | C29: 7 | L29: 0.027 | M29: 9.574927097 | N29: 7.735558058
A30: 0.028 | B30: 10 | C30: 7 | L30: 0.028 | M30: 9.559455981 | N30: 7.725983131
A31: 0.029 | B31: 10 | C31: 7 | L31: 0.029 | M31: 9.544004014 | N31: 7.716423675
A32: 0.03 | B32: 10 | C32: 7 | L32: 0.03 | M32: 9.528571167 | N32: 7.706879671
A33: 0.031 | B33: 10 | C33: 7 | L33: 0.031 | M33: 9.513157408 | N33: 7.6973511
A34: 0.032 | B34: 10 | C34: 7 | L34: 0.032 | M34: 9.497762706 | N34: 7.687837943
A35: =A34+delta -> 0.033 | B35: 10 | C35: 7 | L35: 0.033 | M35: 9.48238703 | N35: 7.67834018
A36: 0.034 | B36: 10 | C36: 7 | L36: 0.034 | M36: 9.467030349 | N36: 7.668857793
A37: 0.035 | B37: 10 | C37: 7 | L37: 0.035 | M37: 9.451692634 | N37: 7.659390763
A38: 0.036 | B38: 10 | C38: 7 | L38: 0.036 | M38: 9.436373852 | N38: 7.64993907
A39: 0.037 | B39: 10 | C39: 7 | L39: 0.037 | M39: 9.421073974 | N39: 7.640502696
A40: 0.038 | B40: 10 | C40: 7 | L40: 0.038 | M40: 9.405792969 | N40: 7.631081622
A41: 0.039 | B41: 10 | C41: 7 | L41: 0.039 | M41: 9.390530805 | N41: 7.621675829
A42: 0.04 | B42: 10 | C42: 7 | L42: 0.04 | M42: 9.375287454 | N42: 7.612285298
A43: 0.041 | B43: 10 | C43: 7 | L43: 0.041 | M43: 9.360062883 | N43: 7.602910011
A44: 0.042 | B44: 10 | C44: 7 | L44: 0.042 | M44: 9.344857063 | N44: 7.593549948
A45: 0.043 | B45: 10 | C45: 7 | L45: 0.043 | M45: 9.329669963 | N45: 7.584205091
A46: 0.044 | B46: 10 | C46: 7 | L46: 0.044 | M46: 9.314501553 | N46: 7.574875421
A47: 0.045 | B47: 10 | C47: 7 | L47: 0.045 | M47: 9.299351802 | N47: 7.565560919
A48: 0.046 | B48: 10 | C48: 7 | L48: 0.046 | M48: 9.28422068 | N48: 7.556261568
A49: 0.047 | B49: 10 | C49: 7 | L49: 0.047 | M49: 9.269108157 | N49: 7.546977347
A50: 0.048 | B50: 10 | C50: 7 | L50: 0.048 | M50: 9.254014203 | N50: 7.537708239
A51: 0.049 | B51: 10 | C51: 7 | L51: 0.049 | M51: 9.238938786 | N51: 7.528454225
A52: 0.05 | B52: 10 | C52: 7 | E52: This sheet shows a probabilistic interpretation of | L52: 0.05 | M52: 9.223881878 | N52: 7.519215286
A53: 0.051 | B53: 10 | C53: 7 | E53: Lanchester's Square Law. Press F9 to resample and | L53: 0.051 | M53: 9.208843447 | N53: 7.509991404
A54: 0.052 | B54: 10 | C54: 7 | E54: see the extent to which results vary. The final net | L54: 0.052 | M54: 9.193823464 | N54: 7.500782561
A55: 0.053 | B55: 10 | C55: 7 | E55: difference of survivors is sometimes positive and | L55: 0.053 | M55: 9.178821899 | N55: 7.491588737
A56: 0.054 | B56: 10 | C56: 7 | E56: sometimes negative. Use SimSheet to see a | L56: 0.054 | M56: 9.163838722 | N56: 7.482409915
A57: 0.055 | B57: 10 | C57: 7 | E57: histogram of the net difference. | L57: 0.055 | M57: 9.148873902 | N57: 7.473246076
A58: 0.056 | B58: 10 | C58: 7 | L58: 0.056 | M58: 9.13392741 | N58: 7.464097203
A59: 0.057 | B59: 10 | C59: 7 | L59: 0.057 | M59: 9.118999215 | N59: 7.454963275
A60: 0.058 | B60: 10 | C60: 7 | L60: 0.058 | M60: 9.104089289 | N60: 7.445844276
A61: 0.059 | B61: 10 | C61: 7 | L61: 0.059 | M61: 9.0891976 | N61: 7.436740187
A62: 0.06 | B62: 10 | C62: 7 | L62: 0.06 | M62: 9.07432412 | N62: 7.427650989
A63: 0.061 | B63: 10 | C63: 7 | L63: 0.061 | M63: 9.059468818 | N63: 7.418576665
A64: 0.062 | B64: 10 | C64: 7 | L64: 0.062 | M64: 9.044631665 | N64: 7.409517196
A65: 0.063 | B65: 10 | C65: 7 | L65: 0.063 | M65: 9.02981263 | N65: 7.400472564
A66: 0.064 | B66: 10 | C66: 7 | L66: 0.064 | M66: 9.015011685 | N66: 7.391442752
A67: =A66+delta -> 0.065 | B67: =IF(RAND()<(beta*C66*delta),MAX(B66-1,0),B66) -> 10 | C67: =IF(RAND()<(alpha*B66*delta),MAX(C66-1,0),C66) -> 7 | L67: =A67 -> 0.065 | M67: 9.000228799 | N67: 7.38242774
A68: 0.066 | B68: 10 | C68: 7 | L68: 0.066 | M68: =MAX(0,M67-delta*beta*N67) -> 8.985463944 | N68: =MAX(0,N67-delta*alpha*M67) -> 7.373427511
A69: 0.067 | B69: 10 | C69: 7 | L69: 0.067 | M69: 8.970717089 | N69: 7.364442047
A70: 0.068 | B70: 10 | C70: 7 | L70: 0.068 | M70: 8.955988205 | N70: 7.35547133
A71: 0.069 | B71: 10 | C71: 7 | L71: 0.069 | M71: 8.941277262 | N71: 7.346515342
A72: 0.07 | B72: 10 | C72: 7 | L72: 0.07 | M72: 8.926584232 | N72: 7.337574065
A73: 0.071 | B73: 10 | C73: 7 | L73: 0.071 | M73: 8.911909083 | N73: 7.328647481
A74: 0.072 | B74: 10 | C74: 7 | L74: 0.072 | M74: 8.897251788 | N74: 7.319735572
A75: 0.073 | B75: 10 | C75: 7 | L75: 0.073 | M75: 8.882612317 | N75: 7.31083832
A76: 0.074 | B76: 10 | C76: 7 | L76: 0.074 | M76: 8.867990641 | N76: 7.301955707
A77: 0.075 | B77: 10 | C77: 7 | L77: 0.075 | M77: 8.853386729 | N77: 7.293087717
A78: 0.076 | B78: 10 | C78: 7 | L78: 0.076 | M78: 8.838800554 | N78: 7.28423433
A79: 0.077 | B79: 10 | C79: 7 | L79: 0.077 | M79: 8.824232085 | N79: 7.275395529
A80: 0.078 | B80: 10 | C80: 7 | L80: 0.078 | M80: 8.809681294 | N80: 7.266571297
A81: 0.079 | B81: 10 | C81: 7 | L81: 0.079 | M81: 8.795148152 | N81: 7.257761616
A82: 0.08 | B82: 10 | C82: 7 | L82: 0.08 | M82: 8.780632628 | N82: 7.248966468
A83: 0.081 | B83: 10 | C83: 7 | L83: 0.081 | M83: 8.766134695 | N83: 7.240185835
A84: 0.082 | B84: 10 | C84: 7 | L84: 0.082 | M84: 8.751654324 | N84: 7.231419701
A85: 0.083 | B85: 10 | C85: 7 | L85: 0.083 | M85: 8.737191484 | N85: 7.222668046
A86: 0.084 | B86: 10 | C86: 7 | L86: 0.084 | M86: 8.722746148 | N86: 7.213930855
A87: 0.085 | B87: 10 | C87: 7 | L87: 0.085 | M87: 8.708318286 | N87: 7.205208109
A88: 0.086 | B88: 10 | C88: 7 | L88: 0.086 | M88: 8.69390787 | N88: 7.19649979
A89: 0.087 | B89: 10 | C89: 7 | L89: 0.087 | M89: 8.679514871 | N89: 7.187805883
A90: 0.088 | B90: 10 | C90: 7 | L90: 0.088 | M90: 8.665139259 | N90: 7.179126368
A91: =A90+delta -> 0.089 | B91: 10 | C91: 7 | L91: 0.089 | M91: 8.650781006 | N91: 7.170461228
A92: 0.09 | B92: 10 | C92: 7 | L92: 0.09 | M92: 8.636440084 | N92: 7.161810447
A93: 0.091 | B93: 10 | C93: 7 | L93: 0.091 | M93: 8.622116463 | N93: 7.153174007
A94: 0.092 | B94: 10 | C94: 7 | L94: 0.092 | M94: 8.607810115 | N94: 7.144551891
A95: 0.093 | B95: 10 | C95: 7 | L95: 0.093 | M95: 8.593521011 | N95: 7.135944081
A96: 0.094 | B96: 10 | C96: 7 | L96: 0.094 | M96: 8.579249123 | N96: 7.12735056
A97: 0.095 | B97: 10 | C97: 7 | L97: 0.095 | M97: 8.564994422 | N97: 7.118771311
A98: 0.096 | B98: 10 | C98: 7 | L98: 0.096 | M98: 8.550756879 | N98: 7.110206316
A99: 0.097 | B99: 10 | C99: 7 | L99: 0.097 | M99: 8.536536466 | N99: 7.101655559
A100: 0.098 | B100: 10 | C100: 7 | L100: 0.098 | M100: 8.522333155 | N100: 7.093119023
A101: 0.099 | B101: 10 | C101: 7 | L101: 0.099 | M101: 8.508146917 | N101: 7.08459669
A102: 0.1 | B102: 10 | C102: 6 | L102: 0.1 | M102: 8.493977724 | N102: 7.076088543
A103: 0.101 | B103: 10 | C103: 6 | L103: 0.101 | M103: 8.479825547 | N103: 7.067594565
A104: 0.102 | B104: 10 | C104: 6 | L104: 0.102 | M104: 8.465690358 | N104: 7.059114739
A105: 0.103 | B105: 10 | C105: 6 | L105: 0.103 | M105: 8.451572128 | N105: 7.050649049
A106: 0.104 | B106: 10 | C106: 6 | L106: 0.104 | M106: 8.43747083 | N106: 7.042197477
A107: 0.105 | B107: 10 | C107: 6 | L107: 0.105 | M107: 8.423386435 | N107: 7.033760006
A108: 0.106 | B108: 10 | C108: 6 | L108: 0.106 | M108: 8.409318915 | N108: 7.02533662
A109: 0.107 | B109: 9 | C109: 6 | L109: 0.107 | M109: 8.395268242 | N109: 7.016927301
A110: 0.108 | B110: 9 | C110: 6 | L110: 0.108 | M110: 8.381234387 | N110: 7.008532033
A111: 0.109 | B111: 9 | C111: 6 | L111: 0.109 | M111: 8.367217323 | N111: 7.000150798
A112: 0.11 | B112: 9 | C112: 6 | L112: 0.11 | M112: 8.353217022 | N112: 6.991783581
A113: 0.111 | B113: 9 | C113: 6 | L113: 0.111 | M113: 8.339233455 | N113: 6.983430364
A114: 0.112 | B114: 9 | C114: 6 | L114: 0.112 | M114: 8.325266594 | N114: 6.97509113
A115: 0.113 | B115: 9 | C115: 6 | L115: 0.113 | M115: 8.311316412 | N115: 6.966765864
A116: 0.114 | B116: 9 | C116: 6 | L116: 0.114 | M116: 8.29738288 | N116: 6.958454547
A117: 0.115 | B117: 9 | C117: 6 | L117: 0.115 | M117: 8.283465971 | N117: 6.950157164
A118: 0.116 | B118: 9 | C118: 5 | L118: 0.116 | M118: 8.269565656 | N118: 6.941873699
A119: 0.117 | B119: 9 | C119: 5 | L119: 0.117 | M119: 8.255681909 | N119: 6.933604133
A120: 0.118 | B120: 9 | C120: 5 | L120: 0.118 | M120: 8.241814701 | N120: 6.925348451
A121: 0.119 | B121: 9 | C121: 5 | L121: 0.119 | M121: 8.227964004 | N121: 6.917106636
A122: 0.12 | B122: 9 | C122: 5 | L122: 0.12 | M122: 8.214129791 | N122: 6.908878672
A123: 0.121 | B123: 9 | C123: 5 | L123: 0.121 | M123: 8.200312033 | N123: 6.900664542
A124: 0.122 | B124: 9 | C124: 5 | L124: 0.122 | M124: 8.186510704 | N124: 6.89246423
A125: 0.123 | B125: 9 | C125: 5 | L125: 0.123 | M125: 8.172725776 | N125: 6.88427772
A126: 0.124 | B126: 9 | C126: 5 | L126: 0.124 | M126: 8.15895722 | N126: 6.876104994
A127: 0.125 | B127: 9 | C127: 5 | L127: 0.125 | M127: 8.14520501 | N127: 6.867946037
A128: 0.126 | B128: 9 | C128: 5 | L128: 0.126 | M128: 8.131469118 | N128: 6.859800832
A129: 0.127 | B129: 9 | C129: 5 | L129: 0.127 | M129: 8.117749516 | N129: 6.851669363
A130: 0.128 | B130: 9 | C130: 5 | L130: 0.128 | M130: 8.104046178 | N130: 6.843551613
A131: 0.129 | B131: =IF(RAND()<(beta*C130*delta),MAX(B130-1,0),B130) -> 9 | C131: =IF(RAND()<(alpha*B130*delta),MAX(C130-1,0),C130) -> 5 | L131: =A131 -> 0.129 | M131: 8.090359075 | N131: 6.835447567
A132: 0.13 | B132: 9 | C132: 5 | L132: 0.13 | M132: =MAX(0,M131-delta*beta*N131) -> 8.076688179 | N132: =MAX(0,N131-delta*alpha*M131) -> 6.827357208
A133: 0.131 | B133: 9 | C133: 5 | L133: 0.131 | M133: 8.063033465 | N133: 6.81928052
A134: 0.132 | B134: 9 | C134: 5 | L134: 0.132 | M134: 8.049394904 | N134: 6.811217486
A135: 0.133 | B135: 9 | C135: 5 | L135: 0.133 | M135: 8.035772469 | N135: 6.803168091
A136: 0.134 | B136: 9 | C136: 5 | L136: 0.134 | M136: 8.022166133 | N136: 6.795132319
A137: 0.135 | B137: 9 | C137: 5 | L137: 0.135 | M137: 8.008575868 | N137: 6.787110153
A138: 0.136 | B138: 9 | C138: 5 | L138: 0.136 | M138: 7.995001648 | N138: 6.779101577
A139: 0.137 | B139: 9 | C139: 5 | L139: 0.137 | M139: 7.981443445 | N139: 6.771106575
A140: 0.138 | B140: 9 | C140: 5 | L140: 0.138 | M140: 7.967901232 | N140: 6.763125132
A141: 0.139 | B141: 9 | C141: 5 | L141: 0.139 | M141: 7.954374981 | N141: 6.75515723
A142: 0.14 | B142: 9 | C142: 5 | L142: 0.14 | M142: 7.940864667 | N142: 6.747202855
A143: 0.141 | B143: 9 | C143: 5 | L143: 0.141 | M143: 7.927370261 | N143: 6.739261991
A144: 0.142 | B144: 9 | C144: 5 | L144: 0.142 | M144: 7.913891737 | N144: 6.731334621
A145: 0.143 | B145: 9 | C145: 5 | L145: 0.143 | M145: 7.900429068 | N145: 6.723420729
A146: 0.144 | B146: 9 | C146: 5 | L146: 0.144 | M146: 7.886982226 | N146: 6.7155203
A147: 0.145 | B147: 9 | C147: 5 | L147: 0.145 | M147: 7.873551186 | N147: 6.707633318
A148: 0.146 | B148: 9 | C148: 5 | L148: 0.146 | M148: 7.860135919 | N148: 6.699759766
A149: 0.147 | B149: 9 | C149: 5 | L149: 0.147 | M149: 7.8467364 | N149: 6.69189963
A150: 0.148 | B150: 9 | C150: 5 | L150: 0.148 | M150: 7.8333526 | N150: 6.684052894
A151: =A150+delta -> 0.149 | B151: 9 | C151: 5 | L151: 0.149 | M151: 7.819984495 | N151: 6.676219541
A152: 0.15 | B152: 9 | C152: 5 | L152: 0.15 | M152: 7.806632056 | N152: 6.668399557
A153: 0.151 | B153: 9 | C153: 5 | L153: 0.151 | M153: 7.793295256 | N153: 6.660592925
A154: 0.152 | B154: 9 | C154: 5 | L154: 0.152 | M154: 7.779974071 | N154: 6.65279963
A155: 0.153 | B155: 9 | C155: 5 | L155: 0.153 | M155: 7.766668471 | N155: 6.645019656
A156: 0.154 | B156: 9 | C156: 5 | L156: 0.154 | M156: 7.753378432 | N156: 6.637252987
A157: 0.155 | B157: 9 | C157: 5 | L157: 0.155 | M157: 7.740103926 | N157: 6.629499609
A158: 0.156 | B158: 9 | C158: 5 | L158: 0.156 | M158: 7.726844927 | N158: 6.621759505
A159: 0.157 | B159: 9 | C159: 5 | L159: 0.157 | M159: 7.713601408 | N159: 6.61403266
A160: 0.158 | B160: 9 | C160: 5 | L160: 0.158 | M160: 7.700373342 | N160: 6.606319058
A161: 0.159 | B161: 9 | C161: 5 | L161: 0.159 | M161: 7.687160704 | N161: 6.598618685
A162: 0.16 | B162: 9 | C162: 5 | L162: 0.16 | M162: 7.673963467 | N162: 6.590931524
A163: 0.161 | B163: 9 | C163: 5 | L163: 0.161 | M163: 7.660781604 | N163: 6.583257561
A164: 0.162 | B164: 9 | C164: 5 | L164: 0.162 | M164: 7.647615089 | N164: 6.575596779
A165: 0.163 | B165: 9 | C165: 5 | L165: 0.163 | M165: 7.634463895 | N165: 6.567949164
A166: 0.164 | B166: 9 | C166: 5 | L166: 0.164 | M166: 7.621327997 | N166: 6.5603147
A167: 0.165 | B167: 9 | C167: 5 | L167: 0.165 | M167: 7.608207368 | N167: 6.552693372
A168: 0.166 | B168: 9 | C168: 5 | L168: 0.166 | M168: 7.595101981 | N168: 6.545085165
A169: 0.167 | B169: 9 | C169: 5 | L169: 0.167 | M169: 7.58201181 | N169: 6.537490063
A170: 0.168 | B170: 9 | C170: 5 | L170: 0.168 | M170: 7.56893683 | N170: 6.529908051
A171: 0.169 | B171: 9 | C171: 5 | L171: 0.169 | M171: 7.555877014 | N171: 6.522339114
A172: 0.17 | B172: 9 | C172: 5 | L172: 0.17 | M172: 7.542832336 | N172: 6.514783237
A173: 0.171 | B173: 9 | C173: 5 | L173: 0.171 | M173: 7.52980277 | N173: 6.507240405
A174: 0.172 | B174: 9 | C174: 5 | L174: 0.172 | M174: 7.516788289 | N174: 6.499710602
A175: 0.173 | B175: 9 | C175: 5 | L175: 0.173 | M175: 7.503788868 | N175: 6.492193814
A176: 0.174 | B176: 9 | C176: 5 | L176: 0.174 | M176: 7.49080448 | N176: 6.484690025
A177: 0.175 | B177: 9 | C177: 5 | L177: 0.175 | M177: 7.4778351 | N177: 6.477199221
A178: 0.176 | B178: 9 | C178: 5 | L178: 0.176 | M178: 7.464880701 | N178: 6.469721385
A179: 0.177 | B179: 9 | C179: 5 | L179: 0.177 | M179: 7.451941259 | N179: 6.462256505
A180: 0.178 | B180: 9 | C180: 5 | L180: 0.178 | M180: 7.439016746 | N180: 6.454804563
A181: 0.179 | B181: 9 | C181: 5 | L181: 0.179 | M181: 7.426107136 | N181: 6.447365547
A182: 0.18 | B182: 9 | C182: 5 | L182: 0.18 | M182: 7.413212405 | N182: 6.43993944
A183: 0.181 | B183: 9 | C183: 5 | L183: 0.181 | M183: 7.400332527 | N183: 6.432526227
A184: 0.182 | B184: 9 | C184: 5 | L184: 0.182 | M184: 7.387467474 | N184: 6.425125895
A185: 0.183 | B185: 9 | C185: 5 | L185: 0.183 | M185: 7.374617222 | N185: 6.417738427
A186: 0.184 | B186: 9 | C186: 5 | L186: 0.184 | M186: 7.361781745 | N186: 6.41036381
A187: 0.185 | B187: 9 | C187: 5 | L187: 0.185 | M187: 7.348961018 | N187: 6.403002028
A188: 0.186 | B188: 9 | C188: 5 | L188: 0.186 | M188: 7.336155014 | N188: 6.395653067
A189: =A188+delta -> 0.187 | B189: 9 | C189: 5 | L189: =A189 -> 0.187 | M189: =MAX(0,M188-delta*beta*N188) -> 7.323363708 | N189: =MAX(0,N188-delta*alpha*M188) -> 6.388316912
A190: 0.188 | B190: 9 | C190: 5 | L190: 0.188 | M190: 7.310587074 | N190: 6.380993548
A191: 0.189 | B191: 9 | C191: 5 | L191: 0.189 | M191: 7.297825087 | N191: 6.373682961
A192: 0.19 | B192: 9 | C192: 5 | L192: 0.19 | M192: 7.285077721 | N192: 6.366385136
A193: 0.191 | B193: 9 | C193: 5 | L193: 0.191 | M193: 7.27234495 | N193: 6.359100059
A194: 0.192 | B194: 9 | C194: 5 | L194: 0.192 | M194: 7.25962675 | N194: 6.351827714
A195: 0.193 | B195: =IF(RAND()<(beta*C194*delta),MAX(B194-1,0),B194) -> 9 | C195: =IF(RAND()<(alpha*B194*delta),MAX(C194-1,0),C194) -> 5 | L195: 0.193 | M195: 7.246923095 | N195: 6.344568087
A196: 0.194 | B196: 9 | C196: 5 | L196: 0.194 | M196: 7.234233959 | N196: 6.337321164
A197: 0.195 | B197: 9 | C197: 5 | L197: 0.195 | M197: 7.221559316 | N197: 6.33008693
A198: 0.196 | B198: 9 | C198: 5 | L198: 0.196 | M198: 7.208899143 | N198: 6.322865371
A199: 0.197 | B199: 9 | C199: 5 | L199: 0.197 | M199: 7.196253412 | N199: 6.315656471
A200: 0.198 | B200: 9 | C200: 5 | L200: 0.198 | M200: 7.183622099 | N200: 6.308460218
... 1800 more rows

Sheet Helmbold
A1: time | B1: x-type | C1: y-type | G1: delta | H1: 0.02
A2: 0 | B2: 1000 | C2: 800 | G2: alpha | H2: 0.8
A3: =A2+delta -> 0.01 | B3: =MAX(B2-delta*beta*C2*(B2/MAX(C2,0.1))^MAX(c_helm,0.00001),0) -> 991.9999821 | C3: =MAX(C2-delta*alpha*B2*(C2/MAX(B2,0.1))^MAX(c_helm,0.00001),0) -> 790.0000223 | G3: beta | H3: 0.9
A4: =A3+delta -> 0.02 | B4: =MAX(B3-delta*beta*C3*(B3/MAX(C3,0.1))^MAX(c_helm,0.00001),0) -> 984.0999639 | C4: =MAX(C3-delta*alpha*B3*(C3/MAX(B3,0.1))^MAX(c_helm,0.00001),0) -> 780.0800451 | G4: d_helm | H4: 2
A5: 0.03 | B5: 976.2991454 | C5: 770.2390683
A6: 0.04 | B6: 968.5967364 | C6: 760.4761 | G6: c_helm | H6: =1-d_helm/2 -> 0
A7: 0.05 | B7: 960.991957 | C7: 750.7901561
A8: 0.06 | B8: 953.4840369 | C8: 741.1802602
A9: 0.07 | B9: 946.0722157 | C9: 731.6454439
A10: 0.08 | B10: 938.7557424 | C10: 722.184746
A11: 0.09 | B11: 931.533876 | C11: 712.7972132
A12: 0.1 | B12: 924.4058848 | C12: 703.4818994
A13: 0.11 | B13: 917.3710466 | C13: 694.2378658
A14: 0.12 | B14: 910.4286486 | C14: 685.0641809
A15: 0.13 | B15: 903.5779873 | C15: 675.9599203
A16: 0.14 | B16: 896.8183685 | C16: 666.9241666
A17: 0.15 | B17: 890.1491071 | C17: 657.9560095
A18: 0.16 | B18: 883.5695271 | C18: 649.0545454
A19: 0.17 | B19: 877.0789616 | C19: 640.2188773
A20: 0.18 | B20: 870.6767527 | C20: 631.4481153
A21: 0.19 | B21: 864.3622512 | C21: 622.7413758
A22: 0.2 | B22: 858.1348171 | C22: 614.0977816
A23: 0.21 | B23: 851.9938187 | C23: 605.5164621
A24: 0.22 | B24: 845.9386334 | C24: 596.9965531
A25: 0.23 | B25: 839.9686471 | C25: 588.5371962
A26: 0.24 | B26: 834.0832542 | C26: 580.1375396
A27: 0.25 | B27: 828.2818577 | C27: 571.7967374
A28: 0.26 | B28: 822.5638691 | C28: 563.5139495
A29: 0.27 | B29: 816.9287083 | C29: 555.2883419
A30: 0.28 | B30: 811.3758035 | C30: 547.1190863
A31: 0.29 | B31: 805.9045911 | C31: 539.0053603
A32: 0.3 | B32: 800.5145158 | C32: 530.9463468
A33: 0.31 | B33: 795.2050305 | C33: 522.9412345
A34: 0.32 | B34: 789.9755962 | C34: 514.9892175
A35: 0.33 | B35: 784.825682 | C35: 507.0894954
A36: 0.34 | B36: 779.7547649 | C36: 499.2412728
A37: 0.35 | B37: 774.7623299 | C37: 491.4437599
A38: 0.36 | B38: 769.84787 | C38: 483.6961719
A39: 0.37 | B39: 765.0108858 | C39: 475.997729
A40: 0.38 | B40: 760.2508859 | C40: 468.3476564
A41: 0.39 | B41: 755.5673866 | C41: 460.7451844
A42: 0.4 | B42: 750.959912 | C42: 453.1895479
A43: 0.41 | B43: 746.4279936 | C43: 445.6799867
A44: 0.42 | B44: 741.9711708 | C44: 438.2157453
A45: 0.43 | B45: 737.5889903 | C45: 430.7960726
A46: 0.44 | B46: 733.2810064 | C46: 423.4202224
A47: 0.45 | B47: 729.0467809 | C47: 416.0874526
A48: 0.46 | B48: 724.885883 | C48: 408.7970257
A49: 0.47 | B49: 720.7978894 | C49: 401.5482084
A50: 0.48 | B50: 716.7823838 | C50: 394.3402716
A51: 0.49 | B51: 712.8389575 | C51: 387.1724906
A52: 0.5 | B52: 708.967209 | C52: 380.0441446
A53: 0.51 | B53: 705.1667438 | C53: 372.9545167
A54: 0.52 | B54: 701.4371749 | C54: 365.9028942
A55: 0.53 | B55: 697.7781221 | C55: 358.8885681
A56: 0.54 | B56: 694.1892126 | C56: 351.9108332
A57: 0.55 | B57: 690.6700804 | C57: 344.9689883
A58: 0.56 | B58: 687.2203665 | C58: 338.0623354
A59: 0.57 | B59: 683.8397192 | C59: 331.1901805
A60: 0.58 | B60: 680.5277934 | C60: 324.3518329
A61: 0.59 | B61: 677.284251 | C61: 317.5466054
A62: 0.6 | B62: 674.1087609 | C62: 310.7738142
A63: 0.61 | B63: 671.0009987 | C63: 304.0327788
A64: 0.62 | B64: 667.9606468 | C64: 297.3228219
A65: 0.63 | B65: 664.9873946 | C65: 290.6432695
A66: 0.64 | B66: 662.0809378 | C66: 283.9934506
A67: 0.65 | B67: 659.2409793 | C67: 277.3726973
A68: =A67+delta -> 0.66 | B68: =MAX(B67-delta*beta*C67*(B67/MAX(C67,0.1))^MAX(c_helm,0.00001),0) -> 656.4672283 | C68: =MAX(C67-delta*alpha*B67*(C67/MAX(B67,0.1))^MAX(c_helm,0.00001),0) -> 270.7803445
A69: 0.67 | B69: 653.7594009 | C69: 264.2157304
A70: 0.68 | B70: 651.1172196 | C70: 257.6781956
A71: 0.69 | B71: 648.5404138 | C71: 251.1670838
A72: 0.7 | B72: 646.0287191 | C72: 244.6817411
A73: 0.71 | B73: 643.5818779 | C73: 238.2215167
A74: 0.72 | B74: 641.1996391 | C74: 231.7857619
A75: 0.73 | B75: 638.8817579 | C75: 225.3738307
A76: 0.74 | B76: 636.6279961 | C76: 218.9850797
A77: 0.75 | B77: 634.4381219 | C77: 212.6188677
A78: 0.76 | B78: 632.31191 | C78: 206.2745558
A79: 0.77 | B79: 630.2491413 | C79: 199.9515076
A80: 0.78 | B80: 628.2496033 | C80: 193.6490885
A81: 0.79 | B81: 626.3130896 | C81: 187.3666664
A82: 0.8 | B82: 624.4394004 | C82: 181.1036111
A83: 0.81 | B83: 622.6283418 | C83: 174.8592944
A84: 0.82 | B84: 620.8797267 | C84: 168.63309
A85: 0.83 | B85: 619.1933738 | C85: 162.4243737
A86: 0.84 | B86: 617.5691083 | C86: 156.2325228
A87: 0.85 | B87: 616.0067616 | C87: 150.0569166
A88: 0.86 | B88: 614.5061713 | C88: 143.896936
A89: 0.87 | B89: 613.067181 | C89: 137.7519635
A90: 0.88 | B90: 611.6896408 | C90: 131.6213832
A91: 0.89 | B91: 610.3734068 | C91: 125.5045808
A92: 0.9 | B92: 609.1183411 | C92: 119.4009432
A93: 0.91 | B93: 607.9243122 | C93: 113.3098591
A94: 0.92 | B94: 606.7911946 | C94: 107.2307181
A95: 0.93 | B95: 605.7188688 | C95: 101.1629113
A96: 0.94 | B96: 604.7072216 | C96: 95.10583102
A97: 0.95 | B97: 603.7561457 | C97: 89.05887066
A98: 0.96 | B98: 602.86554 | C98: 83.02142476
A99: 0.97 | B99: 602.0353092 | C99: 76.99288888
A100: 0.98 | B100: 601.2653645 | C100: 70.9726596
A101: 0.99 | B101: 600.5556228 | C101: 64.96013443
A102: 1 | B102: 599.906007 | C102: 58.95471177
A103: 1.01 | B103: 599.3164462 | C103: 52.95579087
A104: 1.02 | B104: 598.7868754 | C104: 46.96277182
A105: 1.03 | B105: 598.3172357 | C105: 40.97505549
A106: 1.04 | B106: 597.9074742 | C106: 34.99204355
A107: 1.05 | B107: 597.5575438 | C107: 29.01313851
A108: 1.06 | B108: 597.2674037 | C108: 23.03774384
A109: 1.07 | B109: 597.0370187 | C109: 17.06526422
A110: 1.08 | B110: 596.86636 | C110: 11.09510627
A111: 1.09 | B111: 596.7554045 | C111: 5.126680532
A112: 1.1 | B112: 596.7041353 | C112: 0
A113: 1.11 | B113: 596.7041353 | C113: 0
A114: 1.12 | B114: 596.7041353 | C114: 0
A115: 1.13 | B115: 596.7041353 | C115: 0
A116: 1.14 | B116: 596.7041353 | C116: 0
A117: 1.15 | B117: 596.7041353 | C117: 0
A118: 1.16 | B118: 596.7041353 | C118: 0
A119: 1.17 | B119: 596.7041353 | C119: 0
A120: 1.18 | B120: 596.7041353 | C120: 0
A121: 1.19 | B121: 596.7041353 | C121: 0
A122: 1.2 | B122: 596.7041353 | C122: 0
A123: 1.21 | B123: 596.7041353 | C123: 0
A124: 1.22 | B124: 596.7041353 | C124: 0
A125: 1.23 | B125: 596.7041353 | C125: 0
A126: 1.24 | B126: 596.7041353 | C126: 0
A127: 1.25 | B127: 596.7041353 | C127: 0
A128: 1.26 | B128: 596.7041353 | C128: 0
A129: 1.27 | B129: 596.7041353 | C129: 0
A130: 1.28 | B130: 596.7041353 | C130: 0
A131: 1.29 | B131: 596.7041353 | C131: 0
A132: =A131+delta -> 1.3 | B132: =MAX(B131-delta*beta*C131*(B131/MAX(C131,0.1))^MAX(c_helm,0.00001),0) -> 596.7041353 | C132: =MAX(C131-delta*alpha*B131*(C131/MAX(B131,0.1))^MAX(c_helm,0.00001),0) -> 0
A133: 1.31 | B133: 596.7041353 | C133: 0
A134: 1.32 | B134: 596.7041353 | C134: 0
A135: 1.33 | B135: 596.7041353 | C135: 0
A136: 1.34 | B136: 596.7041353 | C136: 0
A137: 1.35 | B137: 596.7041353 | C137: 0
A138: 1.36 | B138: 596.7041353 | C138: 0
A139: 1.37 | B139: 596.7041353 | C139: 0
A140: 1.38 | B140: 596.7041353 | C140: 0
A141: 1.39 | B141: 596.7041353 | C141: 0
A142: 1.4 | B142: 596.7041353 | C142: 0
A143: 1.41 | B143: 596.7041353 | C143: 0
A144: 1.42 | B144: 596.7041353 | C144: 0
A145: 1.43 | B145: 596.7041353 | C145: 0
A146: 1.44 | B146: 596.7041353 | C146: 0
A147: 1.45 | B147: 596.7041353 | C147: 0
A148: 1.46 | B148: 596.7041353 | C148: 0
A149: 1.47 | B149: 596.7041353 | C149: 0
A150: 1.48 | B150: 596.7041353 | C150: 0
A151: 1.49 | B151: 596.7041353 | C151: 0
A152: 1.5 | B152: 596.7041353 | C152: 0
A153: 1.51 | B153: 596.7041353 | C153: 0
A154: 1.52 | B154: 596.7041353 | C154: 0
A155: 1.53 | B155: 596.7041353 | C155: 0
A156: 1.54 | B156: 596.7041353 | C156: 0
A157: 1.55 | B157: 596.7041353 | C157: 0
A158: 1.56 | B158: 596.7041353 | C158: 0
A159: 1.57 | B159: 596.7041353 | C159: 0
A160: 1.58 | B160: 596.7041353 | C160: 0
A161: 1.59 | B161: 596.7041353 | C161: 0
A162: 1.6 | B162: 596.7041353 | C162: 0
A163: 1.61 | B163: 596.7041353 | C163: 0
A164: 1.62 | B164: 596.7041353 | C164: 0
A165: 1.63 | B165: 596.7041353 | C165: 0
A166: 1.64 | B166: 596.7041353 | C166: 0
A167: 1.65 | B167: 596.7041353 | C167: 0
A168: 1.66 | B168: 596.7041353 | C168: 0
A169: 1.67 | B169: 596.7041353 | C169: 0
A170: 1.68 | B170: 596.7041353 | C170: 0
A171: 1.69 | B171: 596.7041353 | C171: 0
A172: 1.7 | B172: 596.7041353 | C172: 0
A173: 1.71 | B173: 596.7041353 | C173: 0
A174: 1.72 | B174: 596.7041353 | C174: 0
A175: 1.73 | B175: 596.7041353 | C175: 0
A176: 1.74 | B176: 596.7041353 | C176: 0
A177: 1.75 | B177: 596.7041353 | C177: 0
A178: 1.76 | B178: 596.7041353 | C178: 0
A179: 1.77 | B179: 596.7041353 | C179: 0
A180: 1.78 | B180: 596.7041353 | C180: 0
A181: 1.79 | B181: 596.7041353 | C181: 0
A182: 1.8 | B182: 596.7041353 | C182: 0
A183: 1.81 | B183: 596.7041353 | C183: 0
A184: 1.82 | B184: 596.7041353 | C184: 0
A185: 1.83 | B185: 596.7041353 | C185: 0
A186: 1.84 | B186: 596.7041353 | C186: 0
A187: 1.85 | B187: 596.7041353 | C187: 0
A188: 1.86 | B188: 596.7041353 | C188: 0
A189: 1.87 | B189: 596.7041353 | C189: 0
A190: 1.88 | B190: 596.7041353 | C190: 0
A191: 1.89 | B191: 596.7041353 | C191: 0
A192: 1.9 | B192: 596.7041353 | C192: 0
A193: 1.91 | B193: 596.7041353 | C193: 0
A194: 1.92 | B194: 596.7041353 | C194: 0
A195: 1.93 | B195: 596.7041353 | C195: 0
A196: =A195+delta -> 1.94 | B196: =MAX(B195-delta*beta*C195*(B195/MAX(C195,0.1))^MAX(c_helm,0.00001),0) -> 596.7041353 | C196: =MAX(C195-delta*alpha*B195*(C195/MAX(B195,0.1))^MAX(c_helm,0.00001),0) -> 0
A197: 1.95 | B197: 596.7041353 | C197: 0
A198: 1.96 | B198: 596.7041353 | C198: 0
A199: 1.97 | B199: 596.7041353 | C199: 0
A200: 1.98 | B200: 596.7041353 | C200: 0
... 29 more rows

Sheet Endgame
F1: Blue Survivors (x or n)
C2: 0 | D2: 1 | E2: 2 | F2: 3 | G2: 4 | H2: 5 | I2: 6 | J2: 7 | K2: 8 | L2: 9 | M2: 10 | O2: beta: y (or Red or m) lethality | P2: 1
B3: 0 | C3: MOE | D3: 0 | E3: 0 | F3: 0 | G3: 0 | H3: 0 | I3: 0 | J3: 0 | K3: 0 | L3: 0 | M3: 0 | O3: alpha: x (or Blue or n) lethality | P3: 1
B4: 1 | C4: 1 | D4: =leftprob($B4,D$2,alpha,beta)*C4+(1-leftprob($B4,D$2,alpha,beta))*D3 -> 0.5 | E4: =leftprob($B4,E$2,alpha,beta)*D4+(1-leftprob($B4,E$2,alpha,beta))*E3 -> 0.1666666667 | F4: 0.04166666667 | G4: 0.008333333333 | H4: 0.001388888889 | I4: 0.0001984126984 | J4: 2.48015873e-05 | K4: 2.755731922e-06 | L4: 2.755731922e-07 | M4: 2.505210839e-08
B5: 2 | C5: 1 | D5: =leftprob($B5,D$2,alpha,beta)*C5+(1-leftprob($B5,D$2,alpha,beta))*D4 -> 0.8333333333 | E5: =leftprob($B5,E$2,alpha,beta)*D5+(1-leftprob($B5,E$2,alpha,beta))*E4 -> 0.5 | F5: =leftprob($B5,F$2,alpha,beta)*E5+(1-leftprob($B5,F$2,alpha,beta))*F4 -> 0.225 | G5: =leftprob($B5,G$2,alpha,beta)*F5+(1-leftprob($B5,G$2,alpha,beta))*G4 -> 0.08055555556 | H5: =leftprob($B5,H$2,alpha,beta)*G5+(1-leftprob($B5,H$2,alpha,beta))*H4 -> 0.02400793651 | I5: =leftprob($B5,I$2,alpha,beta)*H5+(1-leftprob($B5,I$2,alpha,beta))*I4 -> 0.006150793651 | J5: =leftprob($B5,J$2,alpha,beta)*I5+(1-leftprob($B5,J$2,alpha,beta))*J4 -> 0.001386133157 | K5: =leftprob($B5,K$2,alpha,beta)*J5+(1-leftprob($B5,K$2,alpha,beta))*K4 -> 0.0002794312169 | L5: =leftprob($B5,L$2,alpha,beta)*K5+(1-leftprob($B5,L$2,alpha,beta))*L4 -> 5.103114478e-05 | M5: =leftprob($B5,M$2,alpha,beta)*L5+(1-leftprob($B5,M$2,alpha,beta))*M4 -> 8.526067554e-06
B6: 3 | C6: 1 | D6: 0.9583333333 | E6: 0.775 | F6: 0.5 | G6: 0.2603174603 | H6: 0.1126240079 | I6: 0.04164186508 | J6: 0.01346285273 | K6: 0.003874909812 | L6: 0.001007000812 | M6: 0.0002389433162
B7: 4 | C7: 1 | D7: 0.9916666667 | E7: 0.9194444444 | F7: 0.7396825397 | G7: 0.5 | H7: 0.2847911155 | I7: 0.1389015653 | J7: 0.05907693001 | K7: 0.02227558321 | L7: 0.007551180012 | M7: 0.002328153801
B8: 5 | C8: 1 | D8: 0.9986111111 | E8: 0.9759920635 | F8: 0.8873759921 | G8: 0.7152088845 | H8: 0.5 | I8: 0.3030372174 | J8: 0.1607270498 | K8: 0.07552614727 | L8: 0.03182795403 | M8: 0.01216142054
B9: 6 | C9: 1 | D9: 0.9998015873 | E9: 0.9938492063 | F9: 0.9583581349 | G9: 0.8610984347 | H9: 0.6969627826 | I9: 0.5 | J9: 0.3173145653 | K9: 0.179149755 | L9: 0.09075667441 | M9: 0.04163464074
A10: R | B10: 7 | C10: 1 | D10: 0.9999751984 | E10: 0.9986138668 | F10: 0.9865371473 | G10: 0.94092307 | H10: 0.8392729502 | I10: 0.6826854347 | J10: 0.5 | K10: 0.3288798693 | L10: 0.1949355722 | M10: 0.1047585537
A11: e | B11: 8 | C11: 1 | D11: 0.9999972443 | E11: 0.9997205688 | F11: 0.9961250902 | G11: 0.9777244168 | H11: 0.9244738527 | I11: 0.820850245 | J11: 0.6711201307 | K11: 0.5 | L11: 0.3384953029 | M11: 0.2086415533
A12: d | B12: 9 | C12: 1 | D12: 0.9999997244 | E12: 0.9999489689 | F12: 0.9989929992 | G12: 0.99244882 | H12: 0.968172046 | I12: 0.9092433256 | J12: 0.8050644278 | K12: 0.6615046971 | L12: 0.5 | M12: 0.3466534491
B13: 10 | C13: 1 | D13: 0.9999999749 | E13: 0.9999914739 | F13: 0.9997610567 | G13: 0.9976718462 | H13: 0.9878385795 | I13: 0.9583653593 | J13: 0.8952414463 | K13: 0.7913584467 | L13: 0.6533465509 | M13: 0.5
A14: S | B14: 11 | C14: 1 | D14: 0.9999999979 | E14: 0.9999986865 | F14: 0.9999477658 | G14: 0.9993408539 | H14: 0.9957463932 | I14: 0.9825530871 | J14: 0.9485985601 | K14: 0.8823921966 | L14: 0.779321656 | M14: 0.6463113436
A15: u | B15: 12 | C15: 1 | D15: 0.9999999998 | E15: 0.9999998122 | F15: 0.9999894029 | G15: 0.9998272657 | H15: 0.9986270091 | I15: 0.9932690351 | J15: 0.9768114917 | K15: 0.9390437736 | L15: 0.8705914375 | M15: 0.7686459403
A16: r | B16: 13 | C16: 1 | D16: 1 | E16: 0.999999975 | F16: 0.9999979927 | G16: 0.9999578216 | H16: 0.9995881515 | I16: 0.997592641 | J16: 0.9903192388 | K16: 0.9707857282 | L16: 0.9297971547 | M16: 0.8597314093
A17: v | B17: 14 | C17: 1 | D17: 1 | E17: 0.9999999969 | F17: 0.9999996432 | G17: 0.9999903495 | H17: 0.9998845079 | I17: 0.9991969479 | J17: 0.9962377115 | K17: 0.9869824449 | L17: 0.9646055922 | M17: 0.920908016
A18: I | B18: 15 | C18: 1 | D18: 1 | E18: 0.9999999996 | F18: 0.9999999402 | G18: 0.9999979211 | H18: 0.9999695678 | I18: 0.9997488193 | J18: 0.9986316486 | K18: 0.9945797517 | L18: 0.9833394419 | M18: 0.9583668715
A19: v | B19: 16 | C19: 1 | D19: 1 | E19: 1 | F19: 0.9999999905 | G19: 0.9999995766 | H19: 0.9999924317 | I19: 0.9999259919 | J19: 0.9995320614 | K19: 0.9978812915 | L19: 0.9926462256 | M19: 0.9794618586
A20: o | B20: 17 | C20: 1 | D20: 1 | E20: 1 | F20: 0.9999999986 | G20: 0.9999999182 | H20: 0.9999982167 | I20: 0.9999793755 | J20: 0.9998489089 | K20: 0.9992192713 | L20: 0.9969439862 | M20: 0.9904691242
A21: r | B21: 18 | C21: 1 | D21: 1 | E21: 1 | F21: 0.9999999998 | G21: 0.999999985 | H21: 0.9999996006 | I21: 0.9999945443 | J21: 0.9999537664 | K21: 0.9997277679 | L21: 0.9987998407 | M21: 0.9958245848
A22: s | B22: 19 | C22: 1 | D22: 1 | E22: 1 | F22: 1 | G22: 0.9999999974 | H22: 0.9999999147 | I22: 0.9999986258 | J22: 0.9999865483 | K22: 0.9999098726 | L22: 0.9995530766 | M22: 0.9982673898
B23: 20 | C23: 1 | D23: 1 | E23: 1 | F23: 1 | G23: 0.9999999996 | H23: 0.9999999826 | I23: 0.9999996695 | J23: 0.9999962677 | K23: 0.9999715834 | L23: 0.999841702 | M23: 0.9993169312
A24: (y or m)
